Workbook

Sheet Český pohár
A1: 7P | B1: 2016 | C1: Pouze členi | D1: A | I1: Věk min: | M1: Rok: | W1: created by: Zdeněk Vykydal
A2: 7 | B2: koeficient pro logaritmické body | I2: Věk max:
A4: RAC - Český pohár 2016 | E4: 162117 | F4: 167022 | G4: 162002 | H4: 161617 | I4: 162154 | J4: 161622 | O4: Věstonická Venuše | P4: Pohár Rozkoše | Q4: Pohár Vysočiny | R4: Nechranická buchta | S4: Vítr z vinohradů | T4: Cena YCN
D5: Poč. záv./CTL | E5: 18 | F5: 15 | G5: 18 | H5: 23 | I5: 21 | J5: 10 | O5: 162117 | P5: 167022 | Q5: 162002 | R5: 161617 | S5: 162154 | T5: 161622 | X5: =IF(N4,N4,"") -> 
A6: Poř. celk. | B6: Kat. | C6: Reg. číslo | D6: Jméno | E6: Poř. | F6: Poř. | G6: Poř. | H6: Poř. | I6: Poř. | J6: Poř. | K6: Poř. | L6: Poř. | M6: Poř. | N6: Poř. | O6: Body | P6: Body | Q6: Body | R6: Body | S6: Body | T6: Body | U6: Body | V6: Body | W6: Body | X6: Body | Y6: Celkem
A7: 1 | B7: 1.- | C7: 2110-050 | D7: Kučera Petr jun. | E7: 1 | G7: 1 | H7: 1 | I7: 2 | O7: =IF((E7>0),ROUND((101+1000*(LOG10($E$5)-LOG10(E7)))*$A$2,0),0) -> 9494 | P7: =IF((F7>0),ROUND((101+1000*(LOG10($F$5)-LOG10(F7)))*$A$2,0),0) -> 0 | Q7: =IF((G7>0),ROUND((101+1000*(LOG10($G$5)-LOG10(G7)))*$A$2,0),0) -> 9494 | R7: =IF((H7>0),ROUND((101+1000*(LOG10($H$5)-LOG10(H7)))*$A$2,0),0) -> 10239 | S7: =IF((I7>0),ROUND((101+1000*(LOG10($I$5)-LOG10(I7)))*$A$2,0),0) -> 7855 | T7: =IF((J7>0),ROUND((101+1000*(LOG10($J$5)-LOG10(J7)))*$A$2,0),0) -> 0 | U7: =IF((K7>0),ROUND((101+1000*(LOG10($K$5)-LOG10(K7)))*$A$2,0),0) -> 0 | V7: =IF((L7>0),ROUND((101+1000*(LOG10($L$5)-LOG10(L7)))*$A$2,0),0) -> 0 | W7: =IF((M7>0),ROUND((101+1000*(LOG10($M$5)-LOG10(M7)))*$A$2,0),0) -> 0 | X7: =IF((N7>0),ROUND((101+1000*(LOG10($N$5)-LOG10(N7)))*$A$2,0),0) -> 0 | Y7: =SUM(LARGE(O7:X7,1),LARGE(O7:X7,2),LARGE(O7:X7,3)) -> 29227
A8: 2 | B8: 2.- | C8: 7019-192 | D8: Horký Adam | G8: 3 | H8: 2 | I8: 1 | J8: 1 | O8: =IF((E8>0),ROUND((101+1000*(LOG10($E$5)-LOG10(E8)))*$A$2,0),0) -> 0 | P8: =IF((F8>0),ROUND((101+1000*(LOG10($F$5)-LOG10(F8)))*$A$2,0),0) -> 0 | Q8: =IF((G8>0),ROUND((101+1000*(LOG10($G$5)-LOG10(G8)))*$A$2,0),0) -> 6154 | R8: =IF((H8>0),ROUND((101+1000*(LOG10($H$5)-LOG10(H8)))*$A$2,0),0) -> 8132 | S8: =IF((I8>0),ROUND((101+1000*(LOG10($I$5)-LOG10(I8)))*$A$2,0),0) -> 9963 | T8: =IF((J8>0),ROUND((101+1000*(LOG10($J$5)-LOG10(J8)))*$A$2,0),0) -> 7707 | U8: =IF((K8>0),ROUND((101+1000*(LOG10($K$5)-LOG10(K8)))*$A$2,0),0) -> 0 | V8: =IF((L8>0),ROUND((101+1000*(LOG10($L$5)-LOG10(L8)))*$A$2,0),0) -> 0 | W8: =IF((M8>0),ROUND((101+1000*(LOG10($M$5)-LOG10(M8)))*$A$2,0),0) -> 0 | X8: =IF((N8>0),ROUND((101+1000*(LOG10($N$5)-LOG10(N8)))*$A$2,0),0) -> 0 | Y8: =SUM(LARGE(O8:X8,1),LARGE(O8:X8,2),LARGE(O8:X8,3)) -> 25802
A9: 3 | B9: 3.- | C9: 1607-158 | D9: Slíva Jakub | E9: 2 | F9: 1 | G9: 14 | H9: 4 | I9: 4 | J9: 2 | O9: =IF((E9>0),ROUND((101+1000*(LOG10($E$5)-LOG10(E9)))*$A$2,0),0) -> 7387 | P9: =IF((F9>0),ROUND((101+1000*(LOG10($F$5)-LOG10(F9)))*$A$2,0),0) -> 8940 | Q9: =IF((G9>0),ROUND((101+1000*(LOG10($G$5)-LOG10(G9)))*$A$2,0),0) -> 1471 | R9: =IF((H9>0),ROUND((101+1000*(LOG10($H$5)-LOG10(H9)))*$A$2,0),0) -> 6025 | S9: =IF((I9>0),ROUND((101+1000*(LOG10($I$5)-LOG10(I9)))*$A$2,0),0) -> 5748 | T9: =IF((J9>0),ROUND((101+1000*(LOG10($J$5)-LOG10(J9)))*$A$2,0),0) -> 5600 | U9: =IF((K9>0),ROUND((101+1000*(LOG10($K$5)-LOG10(K9)))*$A$2,0),0) -> 0 | V9: =IF((L9>0),ROUND((101+1000*(LOG10($L$5)-LOG10(L9)))*$A$2,0),0) -> 0 | W9: =IF((M9>0),ROUND((101+1000*(LOG10($M$5)-LOG10(M9)))*$A$2,0),0) -> 0 | X9: =IF((N9>0),ROUND((101+1000*(LOG10($N$5)-LOG10(N9)))*$A$2,0),0) -> 0 | Y9: =SUM(LARGE(O9:X9,1),LARGE(O9:X9,2),LARGE(O9:X9,3)) -> 22352
A10: 4 | B10: 1.M | C10: 2001-096 | D10: Kamenský Radim | E10: 5 | G10: 2 | H10: 3 | I10: 3 | O10: =IF((E10>0),ROUND((101+1000*(LOG10($E$5)-LOG10(E10)))*$A$2,0),0) -> 4601 | P10: =IF((F10>0),ROUND((101+1000*(LOG10($F$5)-LOG10(F10)))*$A$2,0),0) -> 0 | Q10: =IF((G10>0),ROUND((101+1000*(LOG10($G$5)-LOG10(G10)))*$A$2,0),0) -> 7387 | R10: =IF((H10>0),ROUND((101+1000*(LOG10($H$5)-LOG10(H10)))*$A$2,0),0) -> 6899 | S10: =IF((I10>0),ROUND((101+1000*(LOG10($I$5)-LOG10(I10)))*$A$2,0),0) -> 6623 | T10: =IF((J10>0),ROUND((101+1000*(LOG10($J$5)-LOG10(J10)))*$A$2,0),0) -> 0 | U10: =IF((K10>0),ROUND((101+1000*(LOG10($K$5)-LOG10(K10)))*$A$2,0),0) -> 0 | V10: =IF((L10>0),ROUND((101+1000*(LOG10($L$5)-LOG10(L10)))*$A$2,0),0) -> 0 | W10: =IF((M10>0),ROUND((101+1000*(LOG10($M$5)-LOG10(M10)))*$A$2,0),0) -> 0 | X10: =IF((N10>0),ROUND((101+1000*(LOG10($N$5)-LOG10(N10)))*$A$2,0),0) -> 0 | Y10: =SUM(LARGE(O10:X10,1),LARGE(O10:X10,2),LARGE(O10:X10,3)) -> 20909
A11: 5 | B11: 2.M | C11: 2413-001 | D11: Král Jiří | F11: 2 | G11: 4 | I11: 7 | O11: =IF((E11>0),ROUND((101+1000*(LOG10($E$5)-LOG10(E11)))*$A$2,0),0) -> 0 | P11: =IF((F11>0),ROUND((101+1000*(LOG10($F$5)-LOG10(F11)))*$A$2,0),0) -> 6832 | Q11: =IF((G11>0),ROUND((101+1000*(LOG10($G$5)-LOG10(G11)))*$A$2,0),0) -> 5279 | R11: =IF((H11>0),ROUND((101+1000*(LOG10($H$5)-LOG10(H11)))*$A$2,0),0) -> 0 | S11: =IF((I11>0),ROUND((101+1000*(LOG10($I$5)-LOG10(I11)))*$A$2,0),0) -> 4047 | T11: =IF((J11>0),ROUND((101+1000*(LOG10($J$5)-LOG10(J11)))*$A$2,0),0) -> 0 | U11: =IF((K11>0),ROUND((101+1000*(LOG10($K$5)-LOG10(K11)))*$A$2,0),0) -> 0 | V11: =IF((L11>0),ROUND((101+1000*(LOG10($L$5)-LOG10(L11)))*$A$2,0),0) -> 0 | W11: =IF((M11>0),ROUND((101+1000*(LOG10($M$5)-LOG10(M11)))*$A$2,0),0) -> 0 | X11: =IF((N11>0),ROUND((101+1000*(LOG10($N$5)-LOG10(N11)))*$A$2,0),0) -> 0 | Y11: =SUM(LARGE(O11:X11,1),LARGE(O11:X11,2),LARGE(O11:X11,3)) -> 16158
A12: 6 | B12: 1.GM | C12: 7019-339 | D12: Slíva Martin | E12: 3 | F12: 6 | G12: 7 | H12: 9 | I12: 9 | J12: 3 | O12: =IF((E12>0),ROUND((101+1000*(LOG10($E$5)-LOG10(E12)))*$A$2,0),0) -> 6154 | P12: =IF((F12>0),ROUND((101+1000*(LOG10($F$5)-LOG10(F12)))*$A$2,0),0) -> 3493 | Q12: =IF((G12>0),ROUND((101+1000*(LOG10($G$5)-LOG10(G12)))*$A$2,0),0) -> 3578 | R12: =IF((H12>0),ROUND((101+1000*(LOG10($H$5)-LOG10(H12)))*$A$2,0),0) -> 3559 | S12: =IF((I12>0),ROUND((101+1000*(LOG10($I$5)-LOG10(I12)))*$A$2,0),0) -> 3283 | T12: =IF((J12>0),ROUND((101+1000*(LOG10($J$5)-LOG10(J12)))*$A$2,0),0) -> 4367 | U12: =IF((K12>0),ROUND((101+1000*(LOG10($K$5)-LOG10(K12)))*$A$2,0),0) -> 0 | V12: =IF((L12>0),ROUND((101+1000*(LOG10($L$5)-LOG10(L12)))*$A$2,0),0) -> 0 | W12: =IF((M12>0),ROUND((101+1000*(LOG10($M$5)-LOG10(M12)))*$A$2,0),0) -> 0 | X12: =IF((N12>0),ROUND((101+1000*(LOG10($N$5)-LOG10(N12)))*$A$2,0),0) -> 0 | Y12: =SUM(LARGE(O12:X12,1),LARGE(O12:X12,2),LARGE(O12:X12,3)) -> 14099
A13: 7 | B13: 2.GM | C13: 2101-375 | D13: Pospíšil Martin | E13: 7 | F13: 5 | G13: 5 | H13: 7 | I13: 6 | O13: =IF((E13>0),ROUND((101+1000*(LOG10($E$5)-LOG10(E13)))*$A$2,0),0) -> 3578 | P13: =IF((F13>0),ROUND((101+1000*(LOG10($F$5)-LOG10(F13)))*$A$2,0),0) -> 4047 | Q13: =IF((G13>0),ROUND((101+1000*(LOG10($G$5)-LOG10(G13)))*$A$2,0),0) -> 4601 | R13: =IF((H13>0),ROUND((101+1000*(LOG10($H$5)-LOG10(H13)))*$A$2,0),0) -> 4323 | S13: =IF((I13>0),ROUND((101+1000*(LOG10($I$5)-LOG10(I13)))*$A$2,0),0) -> 4515 | T13: =IF((J13>0),ROUND((101+1000*(LOG10($J$5)-LOG10(J13)))*$A$2,0),0) -> 0 | U13: =IF((K13>0),ROUND((101+1000*(LOG10($K$5)-LOG10(K13)))*$A$2,0),0) -> 0 | V13: =IF((L13>0),ROUND((101+1000*(LOG10($L$5)-LOG10(L13)))*$A$2,0),0) -> 0 | W13: =IF((M13>0),ROUND((101+1000*(LOG10($M$5)-LOG10(M13)))*$A$2,0),0) -> 0 | X13: =IF((N13>0),ROUND((101+1000*(LOG10($N$5)-LOG10(N13)))*$A$2,0),0) -> 0 | Y13: =SUM(LARGE(O13:X13,1),LARGE(O13:X13,2),LARGE(O13:X13,3)) -> 13439
A14: 8 | B14: 3.GM | C14: 7019-144 | D14: Hrubý Pavel | E14: 6 | F14: 4 | G14: 6 | H14: 8 | I14: 8 | J14: 4 | O14: =IF((E14>0),ROUND((101+1000*(LOG10($E$5)-LOG10(E14)))*$A$2,0),0) -> 4047 | P14: =IF((F14>0),ROUND((101+1000*(LOG10($F$5)-LOG10(F14)))*$A$2,0),0) -> 4725 | Q14: =IF((G14>0),ROUND((101+1000*(LOG10($G$5)-LOG10(G14)))*$A$2,0),0) -> 4047 | R14: =IF((H14>0),ROUND((101+1000*(LOG10($H$5)-LOG10(H14)))*$A$2,0),0) -> 3917 | S14: =IF((I14>0),ROUND((101+1000*(LOG10($I$5)-LOG10(I14)))*$A$2,0),0) -> 3641 | T14: =IF((J14>0),ROUND((101+1000*(LOG10($J$5)-LOG10(J14)))*$A$2,0),0) -> 3493 | U14: =IF((K14>0),ROUND((101+1000*(LOG10($K$5)-LOG10(K14)))*$A$2,0),0) -> 0 | V14: =IF((L14>0),ROUND((101+1000*(LOG10($L$5)-LOG10(L14)))*$A$2,0),0) -> 0 | W14: =IF((M14>0),ROUND((101+1000*(LOG10($M$5)-LOG10(M14)))*$A$2,0),0) -> 0 | X14: =IF((N14>0),ROUND((101+1000*(LOG10($N$5)-LOG10(N14)))*$A$2,0),0) -> 0 | Y14: =SUM(LARGE(O14:X14,1),LARGE(O14:X14,2),LARGE(O14:X14,3)) -> 12819
A15: 9 | B15: 3.M | C15: 2001-086 | D15: Kamenský Pavel | E15: 8 | F15: 3 | G15: 12 | H15: 12 | I15: 10 | J15: 5 | O15: =IF((E15>0),ROUND((101+1000*(LOG10($E$5)-LOG10(E15)))*$A$2,0),0) -> 3172 | P15: =IF((F15>0),ROUND((101+1000*(LOG10($F$5)-LOG10(F15)))*$A$2,0),0) -> 5600 | Q15: =IF((G15>0),ROUND((101+1000*(LOG10($G$5)-LOG10(G15)))*$A$2,0),0) -> 1940 | R15: =IF((H15>0),ROUND((101+1000*(LOG10($H$5)-LOG10(H15)))*$A$2,0),0) -> 2685 | S15: =IF((I15>0),ROUND((101+1000*(LOG10($I$5)-LOG10(I15)))*$A$2,0),0) -> 2963 | T15: =IF((J15>0),ROUND((101+1000*(LOG10($J$5)-LOG10(J15)))*$A$2,0),0) -> 2814 | U15: =IF((K15>0),ROUND((101+1000*(LOG10($K$5)-LOG10(K15)))*$A$2,0),0) -> 0 | V15: =IF((L15>0),ROUND((101+1000*(LOG10($L$5)-LOG10(L15)))*$A$2,0),0) -> 0 | W15: =IF((M15>0),ROUND((101+1000*(LOG10($M$5)-LOG10(M15)))*$A$2,0),0) -> 0 | X15: =IF((N15>0),ROUND((101+1000*(LOG10($N$5)-LOG10(N15)))*$A$2,0),0) -> 0 | Y15: =SUM(LARGE(O15:X15,1),LARGE(O15:X15,2),LARGE(O15:X15,3)) -> 11735
A16: 10 | B16: 1.V | C16: 2405-133 | D16: Mielec Lubomír | E16: 10 | F16: 8 | G16: 9 | H16: 5 | I16: 14 | O16: =IF((E16>0),ROUND((101+1000*(LOG10($E$5)-LOG10(E16)))*$A$2,0),0) -> 2494 | P16: =IF((F16>0),ROUND((101+1000*(LOG10($F$5)-LOG10(F16)))*$A$2,0),0) -> 2618 | Q16: =IF((G16>0),ROUND((101+1000*(LOG10($G$5)-LOG10(G16)))*$A$2,0),0) -> 2814 | R16: =IF((H16>0),ROUND((101+1000*(LOG10($H$5)-LOG10(H16)))*$A$2,0),0) -> 5346 | S16: =IF((I16>0),ROUND((101+1000*(LOG10($I$5)-LOG10(I16)))*$A$2,0),0) -> 1940 | T16: =IF((J16>0),ROUND((101+1000*(LOG10($J$5)-LOG10(J16)))*$A$2,0),0) -> 0 | U16: =IF((K16>0),ROUND((101+1000*(LOG10($K$5)-LOG10(K16)))*$A$2,0),0) -> 0 | V16: =IF((L16>0),ROUND((101+1000*(LOG10($L$5)-LOG10(L16)))*$A$2,0),0) -> 0 | W16: =IF((M16>0),ROUND((101+1000*(LOG10($M$5)-LOG10(M16)))*$A$2,0),0) -> 0 | X16: =IF((N16>0),ROUND((101+1000*(LOG10($N$5)-LOG10(N16)))*$A$2,0),0) -> 0 | Y16: =SUM(LARGE(O16:X16,1),LARGE(O16:X16,2),LARGE(O16:X16,3)) -> 10778
A17: 11 | B17: 2.V | C17: 2110-124 | D17: Vrána Petr | E17: 12 | F17: 12 | G17: 10 | H17: 6 | I17: 11 | O17: =IF((E17>0),ROUND((101+1000*(LOG10($E$5)-LOG10(E17)))*$A$2,0),0) -> 1940 | P17: =IF((F17>0),ROUND((101+1000*(LOG10($F$5)-LOG10(F17)))*$A$2,0),0) -> 1385 | Q17: =IF((G17>0),ROUND((101+1000*(LOG10($G$5)-LOG10(G17)))*$A$2,0),0) -> 2494 | R17: =IF((H17>0),ROUND((101+1000*(LOG10($H$5)-LOG10(H17)))*$A$2,0),0) -> 4792 | S17: =IF((I17>0),ROUND((101+1000*(LOG10($I$5)-LOG10(I17)))*$A$2,0),0) -> 2673 | T17: =IF((J17>0),ROUND((101+1000*(LOG10($J$5)-LOG10(J17)))*$A$2,0),0) -> 0 | U17: =IF((K17>0),ROUND((101+1000*(LOG10($K$5)-LOG10(K17)))*$A$2,0),0) -> 0 | V17: =IF((L17>0),ROUND((101+1000*(LOG10($L$5)-LOG10(L17)))*$A$2,0),0) -> 0 | W17: =IF((M17>0),ROUND((101+1000*(LOG10($M$5)-LOG10(M17)))*$A$2,0),0) -> 0 | X17: =IF((N17>0),ROUND((101+1000*(LOG10($N$5)-LOG10(N17)))*$A$2,0),0) -> 0 | Y17: =SUM(LARGE(O17:X17,1),LARGE(O17:X17,2),LARGE(O17:X17,3)) -> 9959
A18: 12 | B18: 3.V | C18: 2110-006 | D18: Kučera Petr sen. | E18: 11 | F18: 9 | G18: 8 | H18: 11 | I18: 16 | J18: 6 | O18: =IF((E18>0),ROUND((101+1000*(LOG10($E$5)-LOG10(E18)))*$A$2,0),0) -> 2204 | P18: =IF((F18>0),ROUND((101+1000*(LOG10($F$5)-LOG10(F18)))*$A$2,0),0) -> 2260 | Q18: =IF((G18>0),ROUND((101+1000*(LOG10($G$5)-LOG10(G18)))*$A$2,0),0) -> 3172 | R18: =IF((H18>0),ROUND((101+1000*(LOG10($H$5)-LOG10(H18)))*$A$2,0),0) -> 2949 | S18: =IF((I18>0),ROUND((101+1000*(LOG10($I$5)-LOG10(I18)))*$A$2,0),0) -> 1534 | T18: =IF((J18>0),ROUND((101+1000*(LOG10($J$5)-LOG10(J18)))*$A$2,0),0) -> 2260 | U18: =IF((K18>0),ROUND((101+1000*(LOG10($K$5)-LOG10(K18)))*$A$2,0),0) -> 0 | V18: =IF((L18>0),ROUND((101+1000*(LOG10($L$5)-LOG10(L18)))*$A$2,0),0) -> 0 | W18: =IF((M18>0),ROUND((101+1000*(LOG10($M$5)-LOG10(M18)))*$A$2,0),0) -> 0 | X18: =IF((N18>0),ROUND((101+1000*(LOG10($N$5)-LOG10(N18)))*$A$2,0),0) -> 0 | Y18: =SUM(LARGE(O18:X18,1),LARGE(O18:X18,2),LARGE(O18:X18,3)) -> 8381
A19: 13 | B19: 4.GM | C19: 1401-463 | D19: König Josef | E19: 4 | F19: 7 | O19: =IF((E19>0),ROUND((101+1000*(LOG10($E$5)-LOG10(E19)))*$A$2,0),0) -> 5279 | P19: =IF((F19>0),ROUND((101+1000*(LOG10($F$5)-LOG10(F19)))*$A$2,0),0) -> 3024 | Q19: =IF((G19>0),ROUND((101+1000*(LOG10($G$5)-LOG10(G19)))*$A$2,0),0) -> 0 | R19: =IF((H19>0),ROUND((101+1000*(LOG10($H$5)-LOG10(H19)))*$A$2,0),0) -> 0 | S19: =IF((I19>0),ROUND((101+1000*(LOG10($I$5)-LOG10(I19)))*$A$2,0),0) -> 0 | T19: =IF((J19>0),ROUND((101+1000*(LOG10($J$5)-LOG10(J19)))*$A$2,0),0) -> 0 | U19: =IF((K19>0),ROUND((101+1000*(LOG10($K$5)-LOG10(K19)))*$A$2,0),0) -> 0 | V19: =IF((L19>0),ROUND((101+1000*(LOG10($L$5)-LOG10(L19)))*$A$2,0),0) -> 0 | W19: =IF((M19>0),ROUND((101+1000*(LOG10($M$5)-LOG10(M19)))*$A$2,0),0) -> 0 | X19: =IF((N19>0),ROUND((101+1000*(LOG10($N$5)-LOG10(N19)))*$A$2,0),0) -> 0 | Y19: =SUM(LARGE(O19:X19,1),LARGE(O19:X19,2),LARGE(O19:X19,3)) -> 8303
A20: 14 | B20: 4.- | C20: 2001-223 | D20: Hrubá Martina | E20: 9 | F20: 11 | H20: 16 | I20: 13 | O20: =IF((E20>0),ROUND((101+1000*(LOG10($E$5)-LOG10(E20)))*$A$2,0),0) -> 2814 | P20: =IF((F20>0),ROUND((101+1000*(LOG10($F$5)-LOG10(F20)))*$A$2,0),0) -> 1650 | Q20: =IF((G20>0),ROUND((101+1000*(LOG10($G$5)-LOG10(G20)))*$A$2,0),0) -> 0 | R20: =IF((H20>0),ROUND((101+1000*(LOG10($H$5)-LOG10(H20)))*$A$2,0),0) -> 1810 | S20: =IF((I20>0),ROUND((101+1000*(LOG10($I$5)-LOG10(I20)))*$A$2,0),0) -> 2165 | T20: =IF((J20>0),ROUND((101+1000*(LOG10($J$5)-LOG10(J20)))*$A$2,0),0) -> 0 | U20: =IF((K20>0),ROUND((101+1000*(LOG10($K$5)-LOG10(K20)))*$A$2,0),0) -> 0 | V20: =IF((L20>0),ROUND((101+1000*(LOG10($L$5)-LOG10(L20)))*$A$2,0),0) -> 0 | W20: =IF((M20>0),ROUND((101+1000*(LOG10($M$5)-LOG10(M20)))*$A$2,0),0) -> 0 | X20: =IF((N20>0),ROUND((101+1000*(LOG10($N$5)-LOG10(N20)))*$A$2,0),0) -> 0 | Y20: =SUM(LARGE(O20:X20,1),LARGE(O20:X20,2),LARGE(O20:X20,3)) -> 6789
A21: 15 | B21: 4.M | C21: 1607-119 | D21: Himmel Jiří | H21: 13 | I21: 12 | J21: 7 | O21: =IF((E21>0),ROUND((101+1000*(LOG10($E$5)-LOG10(E21)))*$A$2,0),0) -> 0 | P21: =IF((F21>0),ROUND((101+1000*(LOG10($F$5)-LOG10(F21)))*$A$2,0),0) -> 0 | Q21: =IF((G21>0),ROUND((101+1000*(LOG10($G$5)-LOG10(G21)))*$A$2,0),0) -> 0 | R21: =IF((H21>0),ROUND((101+1000*(LOG10($H$5)-LOG10(H21)))*$A$2,0),0) -> 2441 | S21: =IF((I21>0),ROUND((101+1000*(LOG10($I$5)-LOG10(I21)))*$A$2,0),0) -> 2408 | T21: =IF((J21>0),ROUND((101+1000*(LOG10($J$5)-LOG10(J21)))*$A$2,0),0) -> 1791 | U21: =IF((K21>0),ROUND((101+1000*(LOG10($K$5)-LOG10(K21)))*$A$2,0),0) -> 0 | V21: =IF((L21>0),ROUND((101+1000*(LOG10($L$5)-LOG10(L21)))*$A$2,0),0) -> 0 | W21: =IF((M21>0),ROUND((101+1000*(LOG10($M$5)-LOG10(M21)))*$A$2,0),0) -> 0 | X21: =IF((N21>0),ROUND((101+1000*(LOG10($N$5)-LOG10(N21)))*$A$2,0),0) -> 0 | Y21: =SUM(LARGE(O21:X21,1),LARGE(O21:X21,2),LARGE(O21:X21,3)) -> 6640
A22: 16 | B22: 4.V | C22: 1705-001 | D22: Haubold Petr | E22: 13 | F22: 13 | G22: 15 | H22: 14 | I22: 15 | J22: 9 | O22: =IF((E22>0),ROUND((101+1000*(LOG10($E$5)-LOG10(E22)))*$A$2,0),0) -> 1696 | P22: =IF((F22>0),ROUND((101+1000*(LOG10($F$5)-LOG10(F22)))*$A$2,0),0) -> 1142 | Q22: =IF((G22>0),ROUND((101+1000*(LOG10($G$5)-LOG10(G22)))*$A$2,0),0) -> 1261 | R22: =IF((H22>0),ROUND((101+1000*(LOG10($H$5)-LOG10(H22)))*$A$2,0),0) -> 2216 | S22: =IF((I22>0),ROUND((101+1000*(LOG10($I$5)-LOG10(I22)))*$A$2,0),0) -> 1730 | T22: =IF((J22>0),ROUND((101+1000*(LOG10($J$5)-LOG10(J22)))*$A$2,0),0) -> 1027 | U22: =IF((K22>0),ROUND((101+1000*(LOG10($K$5)-LOG10(K22)))*$A$2,0),0) -> 0 | V22: =IF((L22>0),ROUND((101+1000*(LOG10($L$5)-LOG10(L22)))*$A$2,0),0) -> 0 | W22: =IF((M22>0),ROUND((101+1000*(LOG10($M$5)-LOG10(M22)))*$A$2,0),0) -> 0 | X22: =IF((N22>0),ROUND((101+1000*(LOG10($N$5)-LOG10(N22)))*$A$2,0),0) -> 0 | Y22: =SUM(LARGE(O22:X22,1),LARGE(O22:X22,2),LARGE(O22:X22,3)) -> 5642
A23: 17 | B23: 5.M | C23: 1607-121 | D23: Hnitka Martin | G23: 13 | H23: 15 | J23: 8 | O23: =IF((E23>0),ROUND((101+1000*(LOG10($E$5)-LOG10(E23)))*$A$2,0),0) -> 0 | P23: =IF((F23>0),ROUND((101+1000*(LOG10($F$5)-LOG10(F23)))*$A$2,0),0) -> 0 | Q23: =IF((G23>0),ROUND((101+1000*(LOG10($G$5)-LOG10(G23)))*$A$2,0),0) -> 1696 | R23: =IF((H23>0),ROUND((101+1000*(LOG10($H$5)-LOG10(H23)))*$A$2,0),0) -> 2006 | S23: =IF((I23>0),ROUND((101+1000*(LOG10($I$5)-LOG10(I23)))*$A$2,0),0) -> 0 | T23: =IF((J23>0),ROUND((101+1000*(LOG10($J$5)-LOG10(J23)))*$A$2,0),0) -> 1385 | U23: =IF((K23>0),ROUND((101+1000*(LOG10($K$5)-LOG10(K23)))*$A$2,0),0) -> 0 | V23: =IF((L23>0),ROUND((101+1000*(LOG10($L$5)-LOG10(L23)))*$A$2,0),0) -> 0 | W23: =IF((M23>0),ROUND((101+1000*(LOG10($M$5)-LOG10(M23)))*$A$2,0),0) -> 0 | X23: =IF((N23>0),ROUND((101+1000*(LOG10($N$5)-LOG10(N23)))*$A$2,0),0) -> 0 | Y23: =SUM(LARGE(O23:X23,1),LARGE(O23:X23,2),LARGE(O23:X23,3)) -> 5087
A24: 18 | B24: 5.V | C24: 2204-021 | D24: Štrambach Ladislav | E24: 15 | G24: 11 | I24: 17 | O24: =IF((E24>0),ROUND((101+1000*(LOG10($E$5)-LOG10(E24)))*$A$2,0),0) -> 1261 | P24: =IF((F24>0),ROUND((101+1000*(LOG10($F$5)-LOG10(F24)))*$A$2,0),0) -> 0 | Q24: =IF((G24>0),ROUND((101+1000*(LOG10($G$5)-LOG10(G24)))*$A$2,0),0) -> 2204 | R24: =IF((H24>0),ROUND((101+1000*(LOG10($H$5)-LOG10(H24)))*$A$2,0),0) -> 0 | S24: =IF((I24>0),ROUND((101+1000*(LOG10($I$5)-LOG10(I24)))*$A$2,0),0) -> 1349 | T24: =IF((J24>0),ROUND((101+1000*(LOG10($J$5)-LOG10(J24)))*$A$2,0),0) -> 0 | U24: =IF((K24>0),ROUND((101+1000*(LOG10($K$5)-LOG10(K24)))*$A$2,0),0) -> 0 | V24: =IF((L24>0),ROUND((101+1000*(LOG10($L$5)-LOG10(L24)))*$A$2,0),0) -> 0 | W24: =IF((M24>0),ROUND((101+1000*(LOG10($M$5)-LOG10(M24)))*$A$2,0),0) -> 0 | X24: =IF((N24>0),ROUND((101+1000*(LOG10($N$5)-LOG10(N24)))*$A$2,0),0) -> 0 | Y24: =SUM(LARGE(O24:X24,1),LARGE(O24:X24,2),LARGE(O24:X24,3)) -> 4814
A25: 19 | B25: 6.V | C25: 1503-180 | D25: Hrubý Roman | E25: 16 | F25: 10 | H25: 17 | I25: 19 | O25: =IF((E25>0),ROUND((101+1000*(LOG10($E$5)-LOG10(E25)))*$A$2,0),0) -> 1065 | P25: =IF((F25>0),ROUND((101+1000*(LOG10($F$5)-LOG10(F25)))*$A$2,0),0) -> 1940 | Q25: =IF((G25>0),ROUND((101+1000*(LOG10($G$5)-LOG10(G25)))*$A$2,0),0) -> 0 | R25: =IF((H25>0),ROUND((101+1000*(LOG10($H$5)-LOG10(H25)))*$A$2,0),0) -> 1626 | S25: =IF((I25>0),ROUND((101+1000*(LOG10($I$5)-LOG10(I25)))*$A$2,0),0) -> 1011 | T25: =IF((J25>0),ROUND((101+1000*(LOG10($J$5)-LOG10(J25)))*$A$2,0),0) -> 0 | U25: =IF((K25>0),ROUND((101+1000*(LOG10($K$5)-LOG10(K25)))*$A$2,0),0) -> 0 | V25: =IF((L25>0),ROUND((101+1000*(LOG10($L$5)-LOG10(L25)))*$A$2,0),0) -> 0 | W25: =IF((M25>0),ROUND((101+1000*(LOG10($M$5)-LOG10(M25)))*$A$2,0),0) -> 0 | X25: =IF((N25>0),ROUND((101+1000*(LOG10($N$5)-LOG10(N25)))*$A$2,0),0) -> 0 | Y25: =SUM(LARGE(O25:X25,1),LARGE(O25:X25,2),LARGE(O25:X25,3)) -> 4631
A26: 20 | B26: 5.GM | C26: 1503-181 | D26: Hrubá Dagmar | E26: 17 | F26: 14 | H26: 18 | I26: 18 | O26: =IF((E26>0),ROUND((101+1000*(LOG10($E$5)-LOG10(E26)))*$A$2,0),0) -> 881 | P26: =IF((F26>0),ROUND((101+1000*(LOG10($F$5)-LOG10(F26)))*$A$2,0),0) -> 917 | Q26: =IF((G26>0),ROUND((101+1000*(LOG10($G$5)-LOG10(G26)))*$A$2,0),0) -> 0 | R26: =IF((H26>0),ROUND((101+1000*(LOG10($H$5)-LOG10(H26)))*$A$2,0),0) -> 1452 | S26: =IF((I26>0),ROUND((101+1000*(LOG10($I$5)-LOG10(I26)))*$A$2,0),0) -> 1176 | T26: =IF((J26>0),ROUND((101+1000*(LOG10($J$5)-LOG10(J26)))*$A$2,0),0) -> 0 | U26: =IF((K26>0),ROUND((101+1000*(LOG10($K$5)-LOG10(K26)))*$A$2,0),0) -> 0 | V26: =IF((L26>0),ROUND((101+1000*(LOG10($L$5)-LOG10(L26)))*$A$2,0),0) -> 0 | W26: =IF((M26>0),ROUND((101+1000*(LOG10($M$5)-LOG10(M26)))*$A$2,0),0) -> 0 | X26: =IF((N26>0),ROUND((101+1000*(LOG10($N$5)-LOG10(N26)))*$A$2,0),0) -> 0 | Y26: =SUM(LARGE(O26:X26,1),LARGE(O26:X26,2),LARGE(O26:X26,3)) -> 3545
A27: 21 | B27: 6.GM | C27: 7019-359 | D27: Dolejš Rudolf | H27: 10 | O27: =IF((E27>0),ROUND((101+1000*(LOG10($E$5)-LOG10(E27)))*$A$2,0),0) -> 0 | P27: =IF((F27>0),ROUND((101+1000*(LOG10($F$5)-LOG10(F27)))*$A$2,0),0) -> 0 | Q27: =IF((G27>0),ROUND((101+1000*(LOG10($G$5)-LOG10(G27)))*$A$2,0),0) -> 0 | R27: =IF((H27>0),ROUND((101+1000*(LOG10($H$5)-LOG10(H27)))*$A$2,0),0) -> 3239 | S27: =IF((I27>0),ROUND((101+1000*(LOG10($I$5)-LOG10(I27)))*$A$2,0),0) -> 0 | T27: =IF((J27>0),ROUND((101+1000*(LOG10($J$5)-LOG10(J27)))*$A$2,0),0) -> 0 | U27: =IF((K27>0),ROUND((101+1000*(LOG10($K$5)-LOG10(K27)))*$A$2,0),0) -> 0 | V27: =IF((L27>0),ROUND((101+1000*(LOG10($L$5)-LOG10(L27)))*$A$2,0),0) -> 0 | W27: =IF((M27>0),ROUND((101+1000*(LOG10($M$5)-LOG10(M27)))*$A$2,0),0) -> 0 | X27: =IF((N27>0),ROUND((101+1000*(LOG10($N$5)-LOG10(N27)))*$A$2,0),0) -> 0 | Y27: =SUM(LARGE(O27:X27,1),LARGE(O27:X27,2),LARGE(O27:X27,3)) -> 3239
A28: 22 | B28: 7.GM | C28: 1526-044 | D28: Mrůzek Pavel | E28: 14 | H28: 19 | O28: =IF((E28>0),ROUND((101+1000*(LOG10($E$5)-LOG10(E28)))*$A$2,0),0) -> 1471 | P28: =IF((F28>0),ROUND((101+1000*(LOG10($F$5)-LOG10(F28)))*$A$2,0),0) -> 0 | Q28: =IF((G28>0),ROUND((101+1000*(LOG10($G$5)-LOG10(G28)))*$A$2,0),0) -> 0 | R28: =IF((H28>0),ROUND((101+1000*(LOG10($H$5)-LOG10(H28)))*$A$2,0),0) -> 1288 | S28: =IF((I28>0),ROUND((101+1000*(LOG10($I$5)-LOG10(I28)))*$A$2,0),0) -> 0 | T28: =IF((J28>0),ROUND((101+1000*(LOG10($J$5)-LOG10(J28)))*$A$2,0),0) -> 0 | U28: =IF((K28>0),ROUND((101+1000*(LOG10($K$5)-LOG10(K28)))*$A$2,0),0) -> 0 | V28: =IF((L28>0),ROUND((101+1000*(LOG10($L$5)-LOG10(L28)))*$A$2,0),0) -> 0 | W28: =IF((M28>0),ROUND((101+1000*(LOG10($M$5)-LOG10(M28)))*$A$2,0),0) -> 0 | X28: =IF((N28>0),ROUND((101+1000*(LOG10($N$5)-LOG10(N28)))*$A$2,0),0) -> 0 | Y28: =SUM(LARGE(O28:X28,1),LARGE(O28:X28,2),LARGE(O28:X28,3)) -> 2759
A29: 23 | B29: 7.V | C29: 1503-186 | D29: Hromádka Josef | E29: 18 | F29: 15 | G29: 18 | H29: 20 | I29: 20 | J29: 10 | O29: =IF((E29>0),ROUND((101+1000*(LOG10($E$5)-LOG10(E29)))*$A$2,0),0) -> 707 | P29: =IF((F29>0),ROUND((101+1000*(LOG10($F$5)-LOG10(F29)))*$A$2,0),0) -> 707 | Q29: =IF((G29>0),ROUND((101+1000*(LOG10($G$5)-LOG10(G29)))*$A$2,0),0) -> 707 | R29: =IF((H29>0),ROUND((101+1000*(LOG10($H$5)-LOG10(H29)))*$A$2,0),0) -> 1132 | S29: =IF((I29>0),ROUND((101+1000*(LOG10($I$5)-LOG10(I29)))*$A$2,0),0) -> 855 | T29: =IF((J29>0),ROUND((101+1000*(LOG10($J$5)-LOG10(J29)))*$A$2,0),0) -> 707 | U29: =IF((K29>0),ROUND((101+1000*(LOG10($K$5)-LOG10(K29)))*$A$2,0),0) -> 0 | V29: =IF((L29>0),ROUND((101+1000*(LOG10($L$5)-LOG10(L29)))*$A$2,0),0) -> 0 | W29: =IF((M29>0),ROUND((101+1000*(LOG10($M$5)-LOG10(M29)))*$A$2,0),0) -> 0 | X29: =IF((N29>0),ROUND((101+1000*(LOG10($N$5)-LOG10(N29)))*$A$2,0),0) -> 0 | Y29: =SUM(LARGE(O29:X29,1),LARGE(O29:X29,2),LARGE(O29:X29,3)) -> 2694
A30: 24 | B30: 8.V | C30: 7019-356 | D30: Švec Ladislav | G30: 16 | O30: =IF((E30>0),ROUND((101+1000*(LOG10($E$5)-LOG10(E30)))*$A$2,0),0) -> 0 | P30: =IF((F30>0),ROUND((101+1000*(LOG10($F$5)-LOG10(F30)))*$A$2,0),0) -> 0 | Q30: =IF((G30>0),ROUND((101+1000*(LOG10($G$5)-LOG10(G30)))*$A$2,0),0) -> 1065 | R30: =IF((H30>0),ROUND((101+1000*(LOG10($H$5)-LOG10(H30)))*$A$2,0),0) -> 0 | S30: =IF((I30>0),ROUND((101+1000*(LOG10($I$5)-LOG10(I30)))*$A$2,0),0) -> 0 | T30: =IF((J30>0),ROUND((101+1000*(LOG10($J$5)-LOG10(J30)))*$A$2,0),0) -> 0 | U30: =IF((K30>0),ROUND((101+1000*(LOG10($K$5)-LOG10(K30)))*$A$2,0),0) -> 0 | V30: =IF((L30>0),ROUND((101+1000*(LOG10($L$5)-LOG10(L30)))*$A$2,0),0) -> 0 | W30: =IF((M30>0),ROUND((101+1000*(LOG10($M$5)-LOG10(M30)))*$A$2,0),0) -> 0 | X30: =IF((N30>0),ROUND((101+1000*(LOG10($N$5)-LOG10(N30)))*$A$2,0),0) -> 0 | Y30: =SUM(LARGE(O30:X30,1),LARGE(O30:X30,2),LARGE(O30:X30,3)) -> 1065
A31: 25 | B31: 9.V | C31: 1402-334 | D31: Hrubý Jiří | H31: 21 | O31: =IF((E31>0),ROUND((101+1000*(LOG10($E$5)-LOG10(E31)))*$A$2,0),0) -> 0 | P31: =IF((F31>0),ROUND((101+1000*(LOG10($F$5)-LOG10(F31)))*$A$2,0),0) -> 0 | Q31: =IF((G31>0),ROUND((101+1000*(LOG10($G$5)-LOG10(G31)))*$A$2,0),0) -> 0 | R31: =IF((H31>0),ROUND((101+1000*(LOG10($H$5)-LOG10(H31)))*$A$2,0),0) -> 984 | S31: =IF((I31>0),ROUND((101+1000*(LOG10($I$5)-LOG10(I31)))*$A$2,0),0) -> 0 | T31: =IF((J31>0),ROUND((101+1000*(LOG10($J$5)-LOG10(J31)))*$A$2,0),0) -> 0 | U31: =IF((K31>0),ROUND((101+1000*(LOG10($K$5)-LOG10(K31)))*$A$2,0),0) -> 0 | V31: =IF((L31>0),ROUND((101+1000*(LOG10($L$5)-LOG10(L31)))*$A$2,0),0) -> 0 | W31: =IF((M31>0),ROUND((101+1000*(LOG10($M$5)-LOG10(M31)))*$A$2,0),0) -> 0 | X31: =IF((N31>0),ROUND((101+1000*(LOG10($N$5)-LOG10(N31)))*$A$2,0),0) -> 0 | Y31: =SUM(LARGE(O31:X31,1),LARGE(O31:X31,2),LARGE(O31:X31,3)) -> 984
A32: 26 | B32: 10.V | C32: 2110-038 | D32: Rašovský Jaroslav | G32: 17 | O32: =IF((E32>0),ROUND((101+1000*(LOG10($E$5)-LOG10(E32)))*$A$2,0),0) -> 0 | P32: =IF((F32>0),ROUND((101+1000*(LOG10($F$5)-LOG10(F32)))*$A$2,0),0) -> 0 | Q32: =IF((G32>0),ROUND((101+1000*(LOG10($G$5)-LOG10(G32)))*$A$2,0),0) -> 881 | R32: =IF((H32>0),ROUND((101+1000*(LOG10($H$5)-LOG10(H32)))*$A$2,0),0) -> 0 | S32: =IF((I32>0),ROUND((101+1000*(LOG10($I$5)-LOG10(I32)))*$A$2,0),0) -> 0 | T32: =IF((J32>0),ROUND((101+1000*(LOG10($J$5)-LOG10(J32)))*$A$2,0),0) -> 0 | U32: =IF((K32>0),ROUND((101+1000*(LOG10($K$5)-LOG10(K32)))*$A$2,0),0) -> 0 | V32: =IF((L32>0),ROUND((101+1000*(LOG10($L$5)-LOG10(L32)))*$A$2,0),0) -> 0 | W32: =IF((M32>0),ROUND((101+1000*(LOG10($M$5)-LOG10(M32)))*$A$2,0),0) -> 0 | X32: =IF((N32>0),ROUND((101+1000*(LOG10($N$5)-LOG10(N32)))*$A$2,0),0) -> 0 | Y32: =SUM(LARGE(O32:X32,1),LARGE(O32:X32,2),LARGE(O32:X32,3)) -> 881
A33: 27 | B33: 5.- | C33: 7019-387 | D33: Hrubý Kryštof | H33: 22 | O33: =IF((E33>0),ROUND((101+1000*(LOG10($E$5)-LOG10(E33)))*$A$2,0),0) -> 0 | P33: =IF((F33>0),ROUND((101+1000*(LOG10($F$5)-LOG10(F33)))*$A$2,0),0) -> 0 | Q33: =IF((G33>0),ROUND((101+1000*(LOG10($G$5)-LOG10(G33)))*$A$2,0),0) -> 0 | R33: =IF((H33>0),ROUND((101+1000*(LOG10($H$5)-LOG10(H33)))*$A$2,0),0) -> 842 | S33: =IF((I33>0),ROUND((101+1000*(LOG10($I$5)-LOG10(I33)))*$A$2,0),0) -> 0 | T33: =IF((J33>0),ROUND((101+1000*(LOG10($J$5)-LOG10(J33)))*$A$2,0),0) -> 0 | U33: =IF((K33>0),ROUND((101+1000*(LOG10($K$5)-LOG10(K33)))*$A$2,0),0) -> 0 | V33: =IF((L33>0),ROUND((101+1000*(LOG10($L$5)-LOG10(L33)))*$A$2,0),0) -> 0 | W33: =IF((M33>0),ROUND((101+1000*(LOG10($M$5)-LOG10(M33)))*$A$2,0),0) -> 0 | X33: =IF((N33>0),ROUND((101+1000*(LOG10($N$5)-LOG10(N33)))*$A$2,0),0) -> 0 | Y33: =SUM(LARGE(O33:X33,1),LARGE(O33:X33,2),LARGE(O33:X33,3)) -> 842
A34: 28 | B34: 11.V | C34: 2110-120 | D34: Vykydal Jaroslav | H34: 23 | I34: 21 | O34: =IF((E34>0),ROUND((101+1000*(LOG10($E$5)-LOG10(E34)))*$A$2,0),0) -> 0 | P34: =IF((F34>0),ROUND((101+1000*(LOG10($F$5)-LOG10(F34)))*$A$2,0),0) -> 0 | Q34: =IF((G34>0),ROUND((101+1000*(LOG10($G$5)-LOG10(G34)))*$A$2,0),0) -> 0 | R34: =IF((H34>0),ROUND((101+1000*(LOG10($H$5)-LOG10(H34)))*$A$2,0),0) -> 707 | S34: =IF((I34>0),ROUND((101+1000*(LOG10($I$5)-LOG10(I34)))*$A$2,0),0) -> 707 | T34: =IF((J34>0),ROUND((101+1000*(LOG10($J$5)-LOG10(J34)))*$A$2,0),0) -> 0 | U34: =IF((K34>0),ROUND((101+1000*(LOG10($K$5)-LOG10(K34)))*$A$2,0),0) -> 0 | V34: =IF((L34>0),ROUND((101+1000*(LOG10($L$5)-LOG10(L34)))*$A$2,0),0) -> 0 | W34: =IF((M34>0),ROUND((101+1000*(LOG10($M$5)-LOG10(M34)))*$A$2,0),0) -> 0 | X34: =IF((N34>0),ROUND((101+1000*(LOG10($N$5)-LOG10(N34)))*$A$2,0),0) -> 0 | Y34: =SUM(LARGE(O34:X34,1),LARGE(O34:X34,2),LARGE(O34:X34,3)) -> 1414
A35: 29 | B35: 8.GM | C35: 7019-372 | D35: Čech Petr | I35: 5 | O35: =IF((E35>0),ROUND((101+1000*(LOG10($E$5)-LOG10(E35)))*$A$2,0),0) -> 0 | P35: =IF((F35>0),ROUND((101+1000*(LOG10($F$5)-LOG10(F35)))*$A$2,0),0) -> 0 | Q35: =IF((G35>0),ROUND((101+1000*(LOG10($G$5)-LOG10(G35)))*$A$2,0),0) -> 0 | R35: =IF((H35>0),ROUND((101+1000*(LOG10($H$5)-LOG10(H35)))*$A$2,0),0) -> 0 | S35: =IF((I35>0),ROUND((101+1000*(LOG10($I$5)-LOG10(I35)))*$A$2,0),0) -> 5070 | T35: =IF((J35>0),ROUND((101+1000*(LOG10($J$5)-LOG10(J35)))*$A$2,0),0) -> 0 | U35: =IF((K35>0),ROUND((101+1000*(LOG10($K$5)-LOG10(K35)))*$A$2,0),0) -> 0 | V35: =IF((L35>0),ROUND((101+1000*(LOG10($L$5)-LOG10(L35)))*$A$2,0),0) -> 0 | W35: =IF((M35>0),ROUND((101+1000*(LOG10($M$5)-LOG10(M35)))*$A$2,0),0) -> 0 | X35: =IF((N35>0),ROUND((101+1000*(LOG10($N$5)-LOG10(N35)))*$A$2,0),0) -> 0 | Y35: =SUM(LARGE(O35:X35,1),LARGE(O35:X35,2),LARGE(O35:X35,3)) -> 5070

Sheet Regionální pohár Čechy
A1: 3C | B1: 2016 | C1: Pouze členi | D1: A | I1: Věk min: | M1: Rok: | N1: 2013 | W1: created by: Zdeněk Vykydal
A2: 3 | D2: koeficient pro logaritmické body | I2: Věk max:
A4: RAC - Regionální pohár Čechy 2016 | E4: 161501 | F4: 161314 | G4: 161503 | O4: Luky regata 2016 | P4: Pohár D.I.M. | Q4: Senior Cup
D5: Poč. záv./CTL | E5: 3 | F5: 6 | G5: 11 | O5: 161501 | P5: 161314 | Q5: 161503 | X5: =IF(N4,N4,"") -> 
A6: Poř. celk. | B6: Kat. | C6: Reg. číslo | D6: Jméno | E6: Poř. | F6: Poř. | G6: Poř. | H6: Poř. | I6: Poř. | J6: Poř. | K6: Poř. | L6: Poř. | M6: Poř. | N6: Poř. | O6: Body | P6: Body | Q6: Body | R6: Body | S6: Body | T6: Body | U6: Body | V6: Body | W6: Body | X6: Body | Y6: Celkem
A7: 1 | B7: 1.- | C7: 1607-158 | D7: Slíva Jakub | E7: 1 | F7: 1 | O7: =IF((E7>0),ROUND((101+1000*(LOG10($E$5)-LOG10(E7)))*$A$2,0),0) -> 1734 | P7: =IF((F7>0),ROUND((101+1000*(LOG10($F$5)-LOG10(F7)))*$A$2,0),0) -> 2637 | Q7: =IF((G7>0),ROUND((101+1000*(LOG10($G$5)-LOG10(G7)))*$A$2,0),0) -> 0 | R7: =IF((H7>0),ROUND((101+1000*(LOG10($H$5)-LOG10(H7)))*$A$2,0),0) -> 0 | S7: =IF((I7>0),ROUND((101+1000*(LOG10($I$5)-LOG10(I7)))*$A$2,0),0) -> 0 | T7: =IF((J7>0),ROUND((101+1000*(LOG10($J$5)-LOG10(J7)))*$A$2,0),0) -> 0 | U7: =IF((K7>0),ROUND((101+1000*(LOG10($K$5)-LOG10(K7)))*$A$2,0),0) -> 0 | V7: =IF((L7>0),ROUND((101+1000*(LOG10($L$5)-LOG10(L7)))*$A$2,0),0) -> 0 | W7: =IF((M7>0),ROUND((101+1000*(LOG10($M$5)-LOG10(M7)))*$A$2,0),0) -> 0 | X7: =IF((N7>0),ROUND((101+1000*(LOG10($N$5)-LOG10(N7)))*$A$2,0),0) -> 0 | Y7: =SUM(LARGE(O7:X7,1),LARGE(O7:X7,2),LARGE(O7:X7,3)) -> 4371
A8: 2 | B8: 1.M | C8: 1607-119 | D8: Himmel Jiří | G8: 1 | O8: 0 | P8: 0 | Q8: 3427 | R8: 0 | S8: 0 | T8: 0 | U8: 0 | V8: 0 | W8: 0 | X8: 0 | Y8: 3427
A9: 3 | B9: 1.V | C9: 2110-006 | D9: Kučera Petr sen. | F9: 3 | G9: 3 | O9: 0 | P9: 1206 | Q9: 1996 | R9: 0 | S9: 0 | T9: 0 | U9: 0 | V9: 0 | W9: 0 | X9: 0 | Y9: 3202
A10: 4 | B10: 2.V | C10: 1705-001 | D10: Haubold Petr | F10: 2 | G10: 5 | O10: 0 | P10: 1734 | Q10: 1330 | R10: 0 | S10: 0 | T10: 0 | U10: 0 | V10: 0 | W10: 0 | X10: 0 | Y10: 3064
A11: 5 | B11: 1.GM | C11: 7019-144 | D11: Hrubý Pavel | G11: 2 | O11: 0 | P11: 0 | Q11: 2524 | R11: 0 | S11: 0 | T11: 0 | U11: 0 | V11: 0 | W11: 0 | X11: 0 | Y11: 2524
A12: 6 | B12: 2.GM | C12: 7019-359 | D12: Dolejš Rudolf | E12: 2 | G12: 4 | O12: 831 | P12: 0 | Q12: 1621 | R12: 0 | S12: 0 | T12: 0 | U12: 0 | V12: 0 | W12: 0 | X12: 0 | Y12: 2452
A13: 7 | B13: 3.V | C13: 7019-356 | D13: Švec Ladislav | F13: 5 | G13: 8 | O13: 0 | P13: 541 | Q13: 718 | R13: 0 | S13: 0 | T13: 0 | U13: 0 | V13: 0 | W13: 0 | X13: 0 | Y13: 1259
A14: 8 | B14: 4.V | C14: 1503-180 | D14: Hrubý Roman | G14: 6 | O14: 0 | P14: 0 | Q14: 1093 | R14: 0 | S14: 0 | T14: 0 | U14: 0 | V14: 0 | W14: 0 | X14: 0 | Y14: 1093
A15: 9 | B15: 3.GM | C15: 1503-181 | D15: Hrubá Dagmar | G15: 7 | O15: 0 | P15: 0 | Q15: 892 | R15: 0 | S15: 0 | T15: 0 | U15: 0 | V15: 0 | W15: 0 | X15: 0 | Y15: 892
A16: 10 | B16: 2.M | C16: 2001-086 | D16: Kamenský Pavel | F16: 4 | O16: 0 | P16: 831 | Q16: 0 | R16: 0 | S16: 0 | T16: 0 | U16: 0 | V16: 0 | W16: 0 | X16: 0 | Y16: 831
A17: 11 | B17: 5.V | C17: 1503-186 | D17: Hromádka Josef | E17: 3 | G17: 10 | O17: 303 | P17: 0 | Q17: 427 | R17: 0 | S17: 0 | T17: 0 | U17: 0 | V17: 0 | W17: 0 | X17: 0 | Y17: 730
A18: 12 | B18: 6.V | C18: 2110-120 | D18: Vykydal Jaroslav | G18: 9 | O18: 0 | P18: 0 | Q18: 564 | R18: 0 | S18: 0 | T18: 0 | U18: 0 | V18: 0 | W18: 0 | X18: 0 | Y18: 564
A19: 13 | B19: 2.- | C19: 1302-039 | D19: Lavický Karel | F19: 6 | O19: 0 | P19: 303 | Q19: 0 | R19: 0 | S19: 0 | T19: 0 | U19: 0 | V19: 0 | W19: 0 | X19: 0 | Y19: 303
A20: 14 | B20: 7.V | C20: 1402-334 | D20: Hrubý Jiří | G20: 11 | O20: 0 | P20: 0 | Q20: 303 | R20: 0 | S20: 0 | T20: 0 | U20: 0 | V20: 0 | W20: 0 | X20: 0 | Y20: 303
O21: 0 | P21: 0 | Q21: 0 | R21: 0 | S21: 0 | T21: 0 | U21: 0 | V21: 0 | W21: 0 | X21: 0 | Y21: 0
A22: 17 | O22: 0 | P22: 0 | Q22: 0 | R22: 0 | S22: 0 | T22: 0 | U22: 0 | V22: 0 | W22: 0 | X22: 0 | Y22: 0
A23: 18 | O23: 0 | P23: 0 | Q23: 0 | R23: 0 | S23: 0 | T23: 0 | U23: 0 | V23: 0 | W23: 0 | X23: 0 | Y23: 0
A24: 19 | O24: 0 | P24: 0 | Q24: 0 | R24: 0 | S24: 0 | T24: 0 | U24: 0 | V24: 0 | W24: 0 | X24: 0 | Y24: 0
A25: 20 | O25: 0 | P25: 0 | Q25: 0 | R25: 0 | S25: 0 | T25: 0 | U25: 0 | V25: 0 | W25: 0 | X25: 0 | Y25: 0
A26: 21 | O26: 0 | P26: 0 | Q26: 0 | R26: 0 | S26: 0 | T26: 0 | U26: 0 | V26: 0 | W26: 0 | X26: 0 | Y26: 0
A27: 22 | O27: 0 | P27: 0 | Q27: 0 | R27: 0 | S27: 0 | T27: 0 | U27: 0 | V27: 0 | W27: 0 | X27: 0 | Y27: 0
A28: 23 | O28: 0 | P28: 0 | Q28: 0 | R28: 0 | S28: 0 | T28: 0 | U28: 0 | V28: 0 | W28: 0 | X28: 0 | Y28: 0
A29: 24 | O29: 0 | P29: 0 | Q29: 0 | R29: 0 | S29: 0 | T29: 0 | U29: 0 | V29: 0 | W29: 0 | X29: 0 | Y29: 0
A30: 25 | O30: 0 | P30: 0 | Q30: 0 | R30: 0 | S30: 0 | T30: 0 | U30: 0 | V30: 0 | W30: 0 | X30: 0 | Y30: 0
A31: 26 | O31: 0 | P31: 0 | Q31: 0 | R31: 0 | S31: 0 | T31: 0 | U31: 0 | V31: 0 | W31: 0 | X31: 0 | Y31: 0
A32: 27 | O32: 0 | P32: 0 | Q32: 0 | R32: 0 | S32: 0 | T32: 0 | U32: 0 | V32: 0 | W32: 0 | X32: 0 | Y32: 0
A33: 28 | O33: 0 | P33: 0 | Q33: 0 | R33: 0 | S33: 0 | T33: 0 | U33: 0 | V33: 0 | W33: 0 | X33: 0 | Y33: 0
A34: 29 | O34: 0 | P34: 0 | Q34: 0 | R34: 0 | S34: 0 | T34: 0 | U34: 0 | V34: 0 | W34: 0 | X34: 0 | Y34: 0
A35: 30 | O35: 0 | P35: 0 | Q35: 0 | R35: 0 | S35: 0 | T35: 0 | U35: 0 | V35: 0 | W35: 0 | X35: 0 | Y35: 0
A36: 31 | O36: 0 | P36: 0 | Q36: 0 | R36: 0 | S36: 0 | T36: 0 | U36: 0 | V36: 0 | W36: 0 | X36: 0 | Y36: 0
A37: 32 | O37: 0 | P37: 0 | Q37: 0 | R37: 0 | S37: 0 | T37: 0 | U37: 0 | V37: 0 | W37: 0 | X37: 0 | Y37: 0

Sheet Regionální pohár Morava
A1: 3M | B1: 2016 | C1: Pouze členi | D1: A | I1: Věk min: | M1: Rok: | N1: 2013
A2: 3 | B2: koeficient pro logaritmické body | I2: Věk max:
A4: RAC - Regionální pohár Morava 2016 | E4: 162403 | F4: 162124 | G4: 162132 | H4: 162207 | O4: Moravský pohár I | P4: Starobrno Cup | Q4: Veterán Cup | R4: Tvarůžková regata
D5: Poč. záv./CTL | E5: 7 | F5: 10 | G5: 12 | H5: 13 | O5: 162403 | P5: 162124 | Q5: 162132 | R5: 162207 | X5: =IF(N4,N4,"") -> 
A6: Poř. celk. | B6: Kat. | C6: Reg. číslo | D6: Jméno | E6: Poř. | F6: Poř. | G6: Poř. | H6: Poř. | I6: Poř. | J6: Poř. | K6: Poř. | L6: Poř. | M6: Poř. | N6: Poř. | O6: Body | P6: Body | Q6: Body | R6: Body | S6: Body | T6: Body | U6: Body | V6: Body | W6: Body | X6: Body | Y6: Celkem
A7: 1 | B7: 1.- | C7: 2110-050 | D7: Kučera Petr jun. | E7: 1 | F7: 1 | G7: 1 | H7: 2 | O7: =IF((E7>0),ROUND((101+1000*(LOG10($E$5)-LOG10(E7)))*$A$2,0),0) -> 2838 | P7: =IF((F7>0),ROUND((101+1000*(LOG10($F$5)-LOG10(F7)))*$A$2,0),0) -> 3303 | Q7: =IF((G7>0),ROUND((101+1000*(LOG10($G$5)-LOG10(G7)))*$A$2,0),0) -> 3541 | R7: =IF((H7>0),ROUND((101+1000*(LOG10($H$5)-LOG10(H7)))*$A$2,0),0) -> 2742 | S7: =IF((I7>0),ROUND((101+1000*(LOG10($I$5)-LOG10(I7)))*$A$2,0),0) -> 0 | T7: =IF((J7>0),ROUND((101+1000*(LOG10($J$5)-LOG10(J7)))*$A$2,0),0) -> 0 | U7: =IF((K7>0),ROUND((101+1000*(LOG10($K$5)-LOG10(K7)))*$A$2,0),0) -> 0 | V7: =IF((L7>0),ROUND((101+1000*(LOG10($L$5)-LOG10(L7)))*$A$2,0),0) -> 0 | W7: =IF((M7>0),ROUND((101+1000*(LOG10($M$5)-LOG10(M7)))*$A$2,0),0) -> 0 | X7: =IF((N7>0),ROUND((101+1000*(LOG10($N$5)-LOG10(N7)))*$A$2,0),0) -> 0 | Y7: =SUM(LARGE(O7:X7,1),LARGE(O7:X7,2),LARGE(O7:X7,3)) -> 9682
A8: 2 | B8: 1.M | C8: 2001-096 | D8: Kamenský Radim | E8: 2 | F8: 2 | G8: 2 | H8: 1 | O8: 1935 | P8: 2400 | Q8: 2637 | R8: 3645 | S8: 0 | T8: 0 | U8: 0 | V8: 0 | W8: 0 | X8: 0 | Y8: 8682
A9: 3 | B9: 2.M | C9: 2413-001 | D9: Král Jiří | E9: 3 | F9: 3 | G9: 4 | H9: 3 | O9: 1407 | P9: 1872 | Q9: 1734 | R9: 2213 | S9: 0 | T9: 0 | U9: 0 | V9: 0 | W9: 0 | X9: 0 | Y9: 5819
A10: 4 | B10: 1.V | C10: 2110-006 | D10: Kučera Petr sen. | E10: 5 | F10: 5 | G10: 10 | H10: 4 | O10: 741 | P10: 1206 | Q10: 541 | R10: 1839 | S10: 0 | T10: 0 | U10: 0 | V10: 0 | W10: 0 | X10: 0 | Y10: 3786
A11: 5 | B11: 2.V | C11: 2110-124 | D11: Vrána Petr | F11: 6 | G11: 7 | H11: 5 | O11: 0 | P11: 969 | Q11: 1005 | R11: 1548 | S11: 0 | T11: 0 | U11: 0 | V11: 0 | W11: 0 | X11: 0 | Y11: 3522
A12: 6 | B12: 3.M | C12: 2001-086 | D12: Kamenský Pavel | E12: 4 | G12: 6 | H12: 9 | O12: 1032 | P12: 0 | Q12: 1206 | R12: 782 | S12: 0 | T12: 0 | U12: 0 | V12: 0 | W12: 0 | X12: 0 | Y12: 3020
A13: 7 | B13: 4.M | C13: 2110-111 | D13: Skřepek Jan | F13: 9 | G13: 3 | O13: 0 | P13: 440 | Q13: 2109 | R13: 0 | S13: 0 | T13: 0 | U13: 0 | V13: 0 | W13: 0 | X13: 0 | Y13: 2549
A14: 8 | B14: 3.V | C14: 1503-180 | D14: Hrubý Roman | F14: 7 | G14: 8 | H14: 8 | O14: 0 | P14: 768 | Q14: 831 | R14: 936 | S14: 0 | T14: 0 | U14: 0 | V14: 0 | W14: 0 | X14: 0 | Y14: 2535
A15: 9 | B15: 4.V | C15: 2204-021 | D15: Štrambach Ladislav | E15: 6 | G15: 9 | H15: 6 | O15: 504 | P15: 0 | Q15: 678 | R15: 1310 | S15: 0 | T15: 0 | U15: 0 | V15: 0 | W15: 0 | X15: 0 | Y15: 2492
A16: 10 | B16: 1.GM | C16: 1503-181 | D16: Hrubá Dagmar | F16: 8 | G16: 11 | H16: 10 | O16: 0 | P16: 594 | Q16: 416 | R16: 645 | S16: 0 | T16: 0 | U16: 0 | V16: 0 | W16: 0 | X16: 0 | Y16: 1655
A17: 11 | B17: 2.- | C17: 7019-192 | D17: Horký Adam | F17: 4 | O17: 0 | P17: 1497 | Q17: 0 | R17: 0 | S17: 0 | T17: 0 | U17: 0 | V17: 0 | W17: 0 | X17: 0 | Y17: 1497
A18: 12 | B18: 2.GM | C18: 2101-375 | D18: Pospíšil Martin | G18: 5 | O18: 0 | P18: 0 | Q18: 1444 | R18: 0 | S18: 0 | T18: 0 | U18: 0 | V18: 0 | W18: 0 | X18: 0 | Y18: 1444
A19: 13 | B19: 5.V | C19: 2405-133 | D19: Mielec Lubomír | E19: 7 | H19: 7 | O19: 303 | P19: 0 | Q19: 0 | R19: 1110 | S19: 0 | T19: 0 | U19: 0 | V19: 0 | W19: 0 | X19: 0 | Y19: 1413
A20: 14 | B20: 6.V | C20: 2110-038 | D20: Rašovský Jaroslav | F20: 10 | G20: 12 | H20: 12 | O20: 0 | P20: 303 | Q20: 303 | R20: 407 | S20: 0 | T20: 0 | U20: 0 | V20: 0 | W20: 0 | X20: 0 | Y20: 1013
A21: 15 | B21: 7.V | C21: 1705-001 | D21: Haubold Petr | H21: 11 | O21: 0 | P21: 0 | Q21: 0 | R21: 521 | S21: 0 | T21: 0 | U21: 0 | V21: 0 | W21: 0 | X21: 0 | Y21: 521
A22: 16 | B22: 8.V | C22: 2110-120 | D22: Vykydal Jaroslav | H22: 13 | O22: 0 | P22: 0 | Q22: 0 | R22: 303 | S22: 0 | T22: 0 | U22: 0 | V22: 0 | W22: 0 | X22: 0 | Y22: 303
O23: 0 | P23: 0 | Q23: 0 | R23: 0 | S23: 0 | T23: 0 | U23: 0 | V23: 0 | W23: 0 | X23: 0 | Y23: 0
A24: 19 | O24: 0 | P24: 0 | Q24: 0 | R24: 0 | S24: 0 | T24: 0 | U24: 0 | V24: 0 | W24: 0 | X24: 0 | Y24: 0
A25: 20 | O25: 0 | P25: 0 | Q25: 0 | R25: 0 | S25: 0 | T25: 0 | U25: 0 | V25: 0 | W25: 0 | X25: 0 | Y25: 0
A26: 21 | O26: 0 | P26: 0 | Q26: 0 | R26: 0 | S26: 0 | T26: 0 | U26: 0 | V26: 0 | W26: 0 | X26: 0 | Y26: 0
A27: 22 | O27: 0 | P27: 0 | Q27: 0 | R27: 0 | S27: 0 | T27: 0 | U27: 0 | V27: 0 | W27: 0 | X27: 0 | Y27: 0
A28: 23 | O28: 0 | P28: 0 | Q28: 0 | R28: 0 | S28: 0 | T28: 0 | U28: 0 | V28: 0 | W28: 0 | X28: 0 | Y28: 0
A29: 23 | O29: 0 | P29: 0 | Q29: 0 | R29: 0 | S29: 0 | T29: 0 | U29: 0 | V29: 0 | W29: 0 | X29: 0 | Y29: 0

Sheet 161501-3C
B1: Luky regata 2016
A2: 1 | B2: 1 | C2: ESP 10 | D2: 1607-158 | E2: Slíva Jakub | F2: 1988 | G2: 1 | H2: 1 | I2: 1 | J2: DNC* | K2: 3 | L2: 2 109
A3: 2 | B3: 2 | C3: CZE 195 | D3: 7019-359 | E3: Dolejš Rudolf | F3: 1961 | G3: 2 | H3: 2 | I3: 2 | J3: DNC* | K3: 6 | L3: 1 206
A4: X | B4: 3 | C4: CZE 101 | D4: 1503-124 | E4: Koblasa Stanislav | F4: 1934 | G4: 3 | H4: 3 | I4: DNC* | J4: DNC | K4: 13 | L4: 678
A5: X | B5: 4 | C5: CZE 83 | D5: 1503-196 | E5: Nejtek Petr | F5: 1957 | G5: DNC* | H5: DNC | I5: DNC | J5: DNC | K5: 21 | L5: 0
A6: X | D6: 1503-222 | E6: Nejtek Petr | F6: 1987 | G6: DNC* | H6: DNC | I6: DNC | J6: DNC | K6: 21 | L6: 0
A7: 3 | D7: 1503-186 | E7: Hromádka Josef | F7: 1944 | G7: DNC* | H7: DNF | I7: DNC | J7: DNC | K7: 21 | L7: 303

Sheet 162403-3M
B1: Moravský pohár I
A2: 1 | B2: 1 | C2: CZE 15 | D2: 2110-050 | E2: Kučera Petr jun. | F2: 1986 | G2: 2 | H2: 3* | I2: 1 | J2: 2 | K2: 1 | L2: 3* | M2: 1 | N2: 1 | O2: 1 | P2: 9 | Q2: 3 012
A3: 2 | B3: 2 | C3: CZE 110 | D3: 2001-096 | E3: Kamenský Radim | F3: 1976 | G3: 1 | H3: 1 | I3: 2* | J3: 1 | K3: 2* | L3: 1 | M3: 2 | N3: 2 | O3: 2 | P3: 10 | Q3: 2 109
A4: 3 | B4: 3 | C4: CZE 31 | D4: 2413-001 | E4: Král Jiří | F4: 1974 | G4: 3* | H4: 2 | I4: 3 | J4: 3 | K4: 6* | L4: 2 | M4: 3 | N4: 3 | O4: 3 | P4: 19 | Q4: 1 581
A5: 4 | B5: 4 | C5: CZE 113 | D5: 2001-086 | E5: Kamenský Pavel | F5: 1974 | G5: 7* | H5: 6 | I5: 5 | J5: 7* | K5: 3 | L5: 4 | M5: 5 | N5: 4 | O5: 4 | P5: 31 | Q5: 1 206
A6: 5 | B6: 5 | C6: CZE 5 | D6: 2110-006 | E6: Kučera Petr sen. | F6: 1947 | G6: 5 | H6: 5 | I6: 4 | J6: 4 | K6: 5 | L6: 6* | M6: 6* | N6: 5 | O6: 5 | P6: 33 | Q6: 915
A7: 6 | B7: 6 | C7: CZE 53 | D7: 2204-021 | E7: Štrambach Ladislav | F7: 1954 | G7: 4 | H7: 4 | I7: 6 | J7: 5 | K7: 7* | L7: 7* | M7: 7 | N7: 6 | O7: 6 | P7: 38 | Q7: 678
A8: 7 | B8: 7 | C8: CZE 8 | D8: 2405-133 | E8: Mielec Lubomír | F8: 1950 | G8: 6 | H8: 7* | I8: 7* | J8: 6 | K8: 4 | L8: 5 | M8: 4 | N8: 7 | O8: 7 | P8: 39 | Q8: 477
A9: X | B9: 8 | C9: CZE 27 | D9: 2411-060 | E9: Raška Zdeněk | F9: 1944 | G9: 8 | H9: 8 | I9: DNC* | J9: DNC* | K9: 8 | L9: 8 | M9: 8 | N9: 8 | O9: DNC | P9: 57 | Q9: 303

Sheet 162117-7P
B1: Věstonická Venuše
A2: 1 | B2: 1 | C2: CZE 15 | D2: 2110-050 | E2: Kučera Petr jun. | F2: 1986 | G2: 1 | H2: 1 | I2: 1 | J2: 1 | K2: 1 | L2: 7* | M2: 2* | N2: 1 | O2: 1 | P2: 7 | Q2: 9 814
A3: 2 | B3: 2 | C3: CZE 6 | D3: 1607-158 | E3: Slíva Jakub | F3: 1988 | G3: 2 | H3: 3* | I3: 2 | J3: 3 | K3: 2 | L3: 3 | M3: 1 | N3: 3 | O3: 5* | P3: 16 | Q3: 7 707
A4: X | B4: 3 | C4: SVK 241 | D4: 9901-002 | E4: Potucký Martin | F4: 1987 | G4: 5* | H4: 4 | I4: 3 | J4: 2 | K4: 3 | L4: 2 | M4: 3 | N4: 5* | O4: 4 | P4: 21 | Q4: 6 474
A5: X | B5: 4 | C5: SVK 4 | D5: 9901-001 | E5: Heško Marcel | F5: 1975 | G5: 8* | H5: 7* | I5: 4 | J5: 5 | K5: 5 | L5: 1 | M5: 5 | N5: 2 | O5: 2 | P5: 24 | Q5: 5 600
A6: 3 | B6: 5 | C6: CZE 22 | D6: 7019-339 | E6: Slíva Martin | F6: 1964 | G6: 17* | H6: 10 | I6: 5 | J6: DNC* | K6: 6 | L6: 4 | M6: 4 | N6: 7 | O6: 3 | P6: 39 | Q6: 4 921
A7: 4 | B7: 6 | C7: CZE 29 | D7: 1401-463 | E7: König Josef | F7: 1965 | G7: 3 | H7: 12* | I7: 10 | J7: 7 | K7: 4 | L7: 5 | M7: 14* | N7: 6 | O7: 6 | P7: 41 | Q7: 4 367
A8: 5 | B8: 7 | C8: CZE 110 | D8: 2001-096 | E8: Kamenský Radim | F8: 1976 | G8: 4 | H8: 2 | I8: OCS* | J8: 4 | K8: DNC* | L8: DNC | M8: 6 | N8: 4 | O8: 7 | P8: 48 | Q8: 3 899
A9: 6 | B9: 8 | C9: CZE 19 | D9: 7019-144 | E9: Hrubý Pavel | F9: 1964 | G9: 6 | H9: 5 | I9: 8 | J9: 9* | K9: 9 | L9: 8 | M9: 8 | N9: 10* | O9: 9 | P9: 53 | Q9: 3 493
A10: 7 | B10: 9 | C10: CZE 21 | D10: 2101-375 | E10: Pospíšil Martin | F10: 1964 | G10: 14* | H10: 6 | I10: 6 | J10: 8 | K10: 7 | L10: 6 | M10: DNC* | N10: 8 | O10: 12 | P10: 53 | Q10: 3 135
A11: 8 | B11: 10 | C11: CZE 113 | D11: 2001-086 | E11: Kamenský Pavel | F11: 1974 | G11: 10* | H11: 9 | I11: 7 | J11: 6 | K11: 8 | L11: 9 | M11: 15* | N11: 9 | O11: 8 | P11: 56 | Q11: 2 814
A12: 9 | B12: 11 | C12: CZE 251 | D12: 2001-223 | E12: Hrubá Martina | F12: 1992 | G12: 13* | H12: 11 | I12: 12* | J12: 10 | K12: 12 | L12: 10 | M12: 7 | N12: 12 | O12: 11 | P12: 73 | Q12: 2 524
A13: 10 | B13: 12 | C13: CZE 8 | D13: 2405-133 | E13: Mielec Lubomír | F13: 1950 | G13: 9 | H13: 17* | I13: 9 | J13: 13 | K13: 10 | L13: 11 | M13: 9 | N13: 17 | O13: DNC* | P13: 78 | Q13: 2 260
A14: 11 | B14: 13 | C14: CZE 5 | D14: 2110-006 | E14: Kučera Petr sen. | F14: 1947 | G14: 19* | H14: 15* | I14: 11 | J14: 12 | K14: 11 | L14: 13 | M14: 13 | N14: 13 | O14: 15 | P14: 88 | Q14: 2 017
A15: 12 | B15: 14 | C15: CZE 45 | D15: 2110-124 | E15: Vrána Petr | F15: 1958 | G15: 11 | H15: 8 | I15: 16 | J15: 14 | K15: DNF* | L15: 15 | M15: DNC* | N15: 16 | O15: 10 | P15: 90 | Q15: 1 791
A16: 13 | B16: 15 | C16: CZE 61 | D16: 1705-001 | E16: Haubold Petr | F16: 1944 | G16: 12 | H16: 13 | I16: 15 | J16: DNC* | K16: 13 | L16: 12 | M16: 12 | N16: 14 | O16: DNC* | P16: 91 | Q16: 1 582
A17: 14 | B17: 16 | C17: CZE 86 | D17: 1526-044 | E17: Mrůzek Pavel | F17: 1963 | G17: 16 | H17: 18* | I17: 17 | J17: 11 | K17: 14 | L17: 14 | M17: DNC* | N17: 15 | O17: 14 | P17: 101 | Q17: 1 385
A18: 15 | B18: 17 | C18: CZE 53 | D18: 2204-021 | E18: Štrambach Ladislav | F18: 1954 | G18: 7 | H18: 19 | I18: 14 | J18: DNF* | K18: DNC* | L18: DNC | M18: 10 | N18: 18 | O18: 13 | P18: 102 | Q18: 1 201
A19: 16 | B19: 18 | C19: CZE 25 | D19: 1503-180 | E19: Hrubý Roman | F19: 1960 | G19: 15 | H19: 14 | I19: 13 | J19: DNC* | K19: DNC* | L19: DNC | M19: 11 | N19: 11 | O19: DNC | P19: 106 | Q19: 1 027
A20: 17 | B20: 19 | C20: CZE 125 | D20: 1503-181 | E20: Hrubá Dagmar | F20: 1967 | G20: 18 | H20: 16 | I20: 18 | J20: DNC* | K20: DNC* | L20: DNC | M20: DNC | N20: DNC | O20: DNC | P20: 136 | Q20: 863
A21: 18 | B21: 20 | C21: CZE 138 | D21: 1503-186 | E21: Hromádka Josef | F21: 1944 | G21: 20 | H21: 20 | I21: DNC* | J21: DNC* | K21: DNC | L21: DNC | M21: DNC | N21: DNC | O21: DNC | P21: 145 | Q21: 707

Sheet 167022-7P
B1: Pohár Rozkoše
A2: 1 | B2: 1 | C2: CZE 6 | D2: 1607-158 | E2: Slíva Jakub | F2: 1988 | G2: 1* | H2: 1 | I2: 1 | J2: 1 | K2: 1 | L2: 4 | M2: 9 320
A3: X | B3: 2 | C3: SVK 241 | D3: 9901-001 | E3: Potucký Martin | F3: 1987 | M3: 7 213
A4: 2 | B4: 3 | C4: CZE 31 | D4: 2413-001 | E4: Král Jiří | F4: 1974 | G4: 5 | H4: 9* | I4: 4 | J4: 2 | K4: 4 | L4: 15 | M4: 5 980
A5: 3 | B5: 4 | C5: CZE 113 | D5: 2001-086 | E5: Kamenský Pavel | F5: 1974 | G5: 2 | H5: 6 | I5: 3 | J5: 6 | K5: 8* | L5: 17 | M5: 5 106
A6: 4 | B6: 5 | C6: CZE 19 | D6: 7019-144 | E6: Hrubý Pavel | F6: 1964 | G6: 6* | H6: 5 | I6: 6 | J6: 3 | K6: 5 | L6: 19 | M6: 4 427
A7: 5 | B7: 6 | C7: CZE 21 | D7: 2101-375 | E7: Pospíšil Martin | F7: 1964 | G7: 7* | H7: 7 | I7: 5 | J7: 5 | K7: 3 | L7: 20 | M7: 3 873
A8: 6 | B8: 7 | C8: CZE 22 | D8: 7019-339 | E8: Slíva Martin | F8: 1964 | G8: 14* | H8: 3 | I8: 8 | J8: 8 | K8: 6 | L8: 25 | M8: 3 404
A9: 7 | B9: 8 | C9: CZE 29 | D9: 1401-463 | E9: König Josef | F9: 1965 | G9: 3 | H9: 8 | I9: 9 | J9: 7 | K9: 11* | L9: 27 | M9: 2 999
A10: 8 | B10: 9 | C10: CZE 8 | D10: 2405-133 | E10: Mielec Lubomír | F10: 1950 | G10: 8 | H10: 4 | I10: 10* | J10: 9 | K10: 10 | L10: 31 | M10: 2 640
A11: 9 | B11: 10 | C11: CZE 5 | D11: 2110-006 | E11: Kučera Petr sen. | F11: 1947 | G11: 10 | H11: 10 | I11: 7 | J11: 11 | K11: 12* | L11: 38 | M11: 2 320
A12: 10 | B12: 11 | C12: CZE 25 | D12: 1503-180 | E12: Hrubý Roman | F12: 1960 | G12: 11 | H12: 11 | I12: 15* | J12: 12 | K12: 9 | L12: 43 | M12: 2 030
A13: 11 | B13: 12 | C13: CZE 251 | D13: 2001-223 | E13: Hrubá Martina | F13: 1992 | G13: 9 | H13: 13 | I13: 11 | J13: 10 | K13: DNC* | L13: 43 | M13: 1 766
A14: 12 | B14: 13 | C14: CZE 45 | D14: 2110-124 | E14: Vrána Petr | F14: 1958 | G14: DNF* | H14: 12 | I14: 12 | J14: 15 | K14: 7 | L14: 46 | M14: 1 523
A15: 13 | B15: 14 | C15: CZE 61 | D15: 1705-001 | E15: Haubold Petr | F15: 1944 | G15: 13 | H15: 14* | I15: 14 | J15: 14 | K15: 13 | L15: 54 | M15: 1 297
A16: 14 | B16: 15 | C16: CZE 125 | D16: 1503-181 | E16: Hrubá Dagmar | F16: 1967 | G16: 12 | H16: 15 | I16: 16 | J16: 13 | K16: DNC* | L16: 56 | M16: 1 088
A17: X | B17: 16 | C17: CZE 206 | D17: 2003-008 | E17: Haken Vladimír | F17: 1982 | G17: 15 | H17: 16* | I17: 13 | J17: 16 | K17: 14 | L17: 58 | M17: 891
A18: 15 | B18: 17 | C18: CZE 138 | D18: 1503-186 | E18: Hromádka Josef | F18: 1944 | G18: DNF* | H18: DNF | I18: DNC | J18: DNC | K18: DNC | L18: 72 | M18: 707

Sheet 162124-3M
B1: Starobrno Cup
A2: 1 | B2: 1 | C2: CZE 15 | D2: 2110-050 | E2: Kučera Petr jun. | F2: 1986 | G2: 2 | H2: 4* | I2: 1 | J2: 3* | K2: 1 | L2: 1 | M2: 1 | N2: 1 | O2: 7 | P2: 5 108
A3: 2 | B3: 2 | C3: CZE 110 | D3: 2001-096 | E3: Kamenský Radim | F3: 1976 | G3: 1 | H3: 1 | I3: 2 | J3: 2 | K3: 2 | L3: 3* | M3: 4* | N3: 2 | O3: 10 | P3: 3 904
A4: 3 | B4: 3 | C4: CZE 31 | D4: 2413-001 | E4: Král Jiří | F4: 1974 | G4: 5* | H4: 2 | I4: 4 | J4: 1 | K4: 4 | L4: 5* | M4: 2 | N4: 4 | O4: 17 | P4: 3 200
A5: 4 | B5: 4 | C5: CZE 10 | D5: 7019-192 | E5: Horký Adam | F5: 1983 | G5: 3 | H5: 5 | I5: 6* | J5: 4 | K5: 3 | L5: 2 | M5: 3 | N5: 6* | O5: 20 | P5: 2 700
A6: X | B6: 5 | C6: SVK 241 | D6: 9901-002 | E6: Potucký Martin | F6: 1987 | G6: DNC* | H6: 6 | I6: 7* | J6: 5 | K6: 5 | L6: 4 | M6: 6 | N6: 3 | O6: 29 | P6: 2 312
A7: X | B7: 6 | C7: SVK 4 | D7: 9901-001 | E7: Heško Marcel | F7: 1975 | G7: 4 | H7: 8* | I7: 3 | J7: 8* | K7: 6 | L7: 6 | M7: 5 | N7: 5 | O7: 29 | P7: 1 996
A8: 5 | B8: 7 | C8: CZE 5 | D8: 2110-006 | E8: Kučera Petr sen. | F8: 1947 | G8: 6 | H8: 3 | I8: 8* | J8: 7* | K8: 7 | L8: 7 | M8: 7 | N8: 7 | O8: 37 | P8: 1 728
A9: 6 | B9: 8 | C9: CZE 45 | D9: 2110-124 | E9: Vrána Petr | F9: 1958 | G9: 7 | H9: 7 | I9: 5 | J9: 6 | K9: 8* | L9: 11* | M9: 8 | N9: 8 | O9: 41 | P9: 1 496
A10: 7 | B10: 9 | C10: CZE 25 | D10: 1503-180 | E10: Hrubý Roman | F10: 1960 | G10: 10 | H10: 13* | I10: 9 | J10: 10 | K10: 11* | L10: 8 | M10: 9 | N10: 9 | O10: 55 | P10: 1 291
A11: X | B11: 10 | C11: CZE 44 | D11: 2110-150 | E11: Vránová Markéta | F11: 1991 | G11: 8 | H11: 10 | I11: 13 | J11: 9 | K11: 10 | L11: 9 | M11: DNF* | N11: DNC* | O11: 59 | P11: 1 108
A12: X | B12: 11 | C12: CZE 206 | D12: 2003-008 | E12: Haken Vladimír | F12: 1982 | G12: 9 | H12: 9 | I12: 12 | J12: 13* | K12: 13* | L12: 10 | M12: 12 | N12: 11 | O12: 63 | P12: 943
A13: X | B13: 12 | C13: CZE 67 | D13: 2110-149 | E13: Marek Michal | F13: 1991 | G13: 11 | H13: 12 | I13: 14* | J13: 11 | K13: 9 | L13: 13* | M13: 11 | N13: 12 | O13: 66 | P13: 792
A14: 8 | B14: 13 | C14: CZE 125 | D14: 1503-181 | E14: Hrubá Dagmar | F14: 1967 | G14: 12 | H14: 11 | I14: 11 | J14: 12 | K14: 12 | L14: 12 | M14: DNC* | N14: DNC* | O14: 70 | P14: 653
A15: 9 | B15: 14 | C15: CZE 78 | D15: 2110-111 | E15: Skřepek Jan | F15: 1978 | G15: 14 | H15: DNC* | I15: 10 | J15: DNC* | K15: DNC | L15: 14 | M15: 10 | N15: 10 | O15: 74 | P15: 524
A16: 10 | B16: 15 | C16: CZE 65 | D16: 2110-038 | E16: Rašovský Jaroslav | F16: 1948 | G16: 13 | H16: DNF* | I16: 15 | J16: 14 | K16: 14 | L16: DNF* | M16: DNC | N16: DNC | O16: 88 | P16: 404

Sheet 161314-3C
B1: Pohár D.I.M.
A2: 1 | B2: 1 | C2: CZE 6 | D2: 1607-158 | E2: Slíva Jakub | F2: 1988 | G2: 1 | H2: 1 | I2: 2 | J2: 1 600
A3: 2 | B3: 2 | C3: CZE 61 | D3: 1705-001 | E3: Haubold Petr | F3: 1944 | G3: 2 | H3: 4 | I3: 6 | J3: 998
A4: 3 | B4: 3 | C4: CZE 5 | D4: 2110-006 | E4: Kučera Petr sen. | F4: 1947 | G4: 3 | H4: 3 | I4: 6 | J4: 646
A5: 4 | B5: 4 | C5: CZE 113 | D5: 2001-086 | E5: Kamenský Pavel | F5: 1974 | G5: 5 | H5: 2 | I5: 7 | J5: 396
A6: 5 | B6: 5 | C6: CZE 814 | D6: 7019-356 | E6: Švec Ladislav | F6: 1949 | G6: 4 | H6: 5 | I6: 9 | J6: 202
A7: 6 | B7: 6 | C7: CZE 130 | D7: 1302-039 | E7: Lavický Karel | F7: 1985 | G7: DNC | H7: DNC | I7: 14 | J7: 0

Sheet 162002-7P
B1: Pohár Vysočiny
A2: 1 | B2: 1 | C2: CZE 15 | D2: 2110-050 | E2: Kučera Petr jun. | F2: 1986 | G2: 2 | H2: DNC* | I2: 1 | J2: 2 | K2: 4* | L2: 3 | M2: 1 | N2: 1 | O2: 10 | P2: 9 814
A3: 2 | B3: 2 | C3: CZE 110 | D3: 2001-096 | E3: Kamenský Radim | F3: 1976 | G3: 1 | H3: 1 | I3: 7* | J3: 1 | K3: 7* | L3: 2 | M3: 2 | N3: 4 | O3: 11 | P3: 7 707
A4: 3 | B4: 3 | C4: CZE 10 | D4: 7019-192 | E4: Horký Adam | F4: 1983 | G4: 3 | H4: 2 | I4: 2 | J4: 3 | K4: 6* | L4: 4* | M4: 4 | N4: 2 | O4: 16 | P4: 6 474
A5: 4 | B5: 4 | C5: CZE 31 | D5: 2413-001 | E5: Král Jiří | F5: 1974 | G5: 4* | H5: 3 | I5: 3 | J5: 4 | K5: 3 | L5: 5* | M5: 3 | N5: 3 | O5: 19 | P5: 5 600
A6: 5 | B6: 5 | C6: CZE 21 | D6: 2101-375 | E6: Pospíšil Martin | F6: 1964 | G6: 6 | H6: 4 | I6: 10* | J6: 5 | K6: 2 | L6: 14* | M6: 6 | N6: 5 | O6: 28 | P6: 4 921
A7: X | B7: 6 | C7: SVK 4 | D7: 9901-001 | E7: Heško Marcel | F7: 1975 | G7: 5 | H7: 5 | I7: 9* | J7: 6 | K7: 11* | L7: 9 | M7: 9 | N7: 6 | O7: 40 | P7: 4 367
A8: 6 | B8: 7 | C8: CZE 19 | D8: 7019-144 | E8: Hrubý Pavel | F8: 1964 | G8: 8 | H8: 6 | I8: 8 | J8: 10* | K8: 8 | L8: 1 | M8: 10* | N8: 9 | O8: 40 | P8: 3 899
A9: 7 | B9: 8 | C9: CZE 22 | D9: 7019-339 | E9: Slíva Martin | F9: 1964 | G9: 10 | H9: 10 | I9: 5 | J9: DNC* | K9: 1 | L9: 10 | M9: 7 | N9: 12* | O9: 43 | P9: 3 493
A10: 8 | B10: 9 | C10: CZE 5 | D10: 2110-006 | E10: Kučera Petr sen. | F10: 1947 | G10: 11 | H10: 7 | I10: 4 | J10: 7 | K10: 13* | L10: 13* | M10: 11 | N10: 7 | O10: 47 | P10: 3 135
A11: 9 | B11: 10 | C11: CZE 8 | D11: 2405-133 | E11: Mielec Lubomír | F11: 1950 | G11: 12 | H11: 11 | I11: 6 | J11: 9 | K11: 9 | L11: 16* | M11: 8 | N11: 14* | O11: 55 | P11: 2 814
A12: 10 | B12: 11 | C12: CZE 45 | D12: 2110-124 | E12: Vrána Petr | F12: 1958 | G12: 14* | H12: 12 | I12: 14 | J12: 8 | K12: 5 | L12: 15* | M12: 13 | N12: 11 | O12: 63 | P12: 2 524
A13: 11 | B13: 12 | C13: CZE 53 | D13: 2204-021 | E13: Štrambach Ladislav | F13: 1954 | G13: 15* | H13: 8 | I13: 13* | J13: 12 | K13: 12 | L13: 11 | M13: 12 | N13: 10 | O13: 65 | P13: 2 260
A14: 12 | B14: 13 | C14: CZE 113 | D14: 2001-086 | E14: Kamenský Pavel | F14: 1974 | G14: 9 | H14: 14* | I14: 12 | J14: 14 | K14: 10 | L14: 7 | M14: 16* | N14: 13 | O14: 65 | P14: 2 017
A15: 13 | B15: 14 | C15: CZE 24 | D15: 1607-121 | E15: Hnitka Martin | F15: 1972 | G15: 13 | H15: 9 | I15: 11 | J15: 11 | K15: 15* | L15: 8 | M15: DNF* | N15: 15 | O15: 67 | P15: 1 791
A16: 14 | B16: 15 | C16: CZE 6 | D16: 1607-158 | E16: Slíva Jakub | F16: 1988 | G16: 7 | H16: DNC* | I16: DNC* | J16: DNC | K16: DNC | L16: 6 | M16: 5 | N16: 8 | O16: 68 | P16: 1 582
A17: X | B17: 16 | C17: CZE 206 | D17: 2003-008 | E17: Haken Vladimír | F17: 1982 | G17: 20* | H17: 15 | I17: 18* | J17: 15 | K17: 17 | L17: 12 | M17: 17 | N17: 16 | O17: 92 | P17: 1 385
A18: 15 | B18: 17 | C18: CZE 61 | D18: 1705-001 | E18: Haubold Petr | F18: 1944 | G18: 16 | H18: 13 | I18: 16 | J18: 13 | K18: 14 | L18: DNC* | M18: DNC* | N18: DNC | O18: 93 | P18: 1 201
A19: 16 | B19: 18 | C19: CZE 814 | D19: 7019-356 | E19: Švec Ladislav | F19: 1949 | G19: 17* | H19: 16 | I19: 15 | J19: 16 | K19: 16 | L19: 17* | M19: 15 | N19: 17 | O19: 95 | P19: 1 027
A20: 17 | B20: 19 | C20: CZE 65 | D20: 2110-038 | E20: Rašovský Jaroslav | F20: 1948 | G20: 18 | H20: 17 | I20: 17 | J20: DNF* | K20: DNS* | L20: 18 | M20: 14 | N20: 18 | O20: 102 | P20: 863
A21: 18 | B21: 20 | C21: CZE 138 | D21: 1503-186 | E21: Hromádka Josef | F21: 1944 | G21: 19 | H21: DNC* | I21: DNC* | J21: DNS | K21: DNC | L21: DNC | M21: DNC | N21: DNC | O21: 124 | P21: 707

Sheet 162132-3M
B1: Veterán Cup
A2: 1 | B2: 1 | C2: CZE 15 | D2: 2110-050 | E2: Kučera Petr jun. | F2: 1986 | G2: 2* | H2: 1 | I2: 2 | J2: 1 | K2: 1 | L2: DNC* | M2: 1 | N2: 6 | O2: 4 139
A3: 2 | B3: 2 | C3: CZE 110 | D3: 2001-096 | E3: Kamenský Radim | F3: 1976 | G3: 1 | H3: 2* | I3: 1 | J3: 2 | K3: 4* | L3: 1 | M3: 2 | N3: 7 | O3: 3 236
A4: 3 | B4: 3 | C4: CZE 78 | D4: 2110-111 | E4: Skřepek Jan | F4: 1978 | G4: DNC* | H4: 3 | I4: 3 | J4: 3 | K4: 3 | L4: 2 | M4: 4* | N4: 14 | O4: 2 708
A5: X | B5: 4 | C5: SVK 4 | D5: 9901-001 | E5: Heško Marcel | F5: 1975 | G5: DNC* | H5: 6* | I5: 4 | J5: 4 | K5: 2 | L5: 5 | M5: 3 | N5: 18 | O5: 2 333
A6: 4 | B6: 5 | C6: CZE 31 | D6: 2413-001 | E6: Král Jiří | F6: 1974 | G6: 3 | H6: 5 | I6: 5 | J6: 7* | K6: DNC* | L6: 4 | M6: 5 | N6: 22 | O6: 2 042
A7: 5 | B7: 6 | C7: CZE 21 | D7: 2101-375 | E7: Pospíšil Martin | F7: 1964 | G7: 5 | H7: 4 | I7: 9* | J7: 5 | K7: 7* | L7: 3 | M7: 7 | N7: 24 | O7: 1 805
A8: 6 | B8: 7 | C8: CZE 113 | D8: 2001-086 | E8: Kamenský Pavel | F8: 1974 | G8: 4 | H8: 7 | I8: 8* | J8: 6 | K8: 8 | L8: 6 | M8: 9* | N8: 31 | O8: 1 604
A9: 7 | B9: 8 | C9: CZE 45 | D9: 2110-124 | E9: Vrána Petr | F9: 1958 | G9: 11* | H9: 8 | I9: 7 | J9: OCS* | K9: 6 | L9: 7 | M9: 6 | N9: 34 | O9: 1 430
A10: 8 | B10: 9 | C10: CZE 25 | D10: 1503-180 | E10: Hrubý Roman | F10: 1960 | G10: 6 | H10: 9 | I10: 6 | J10: 8 | K10: 9 | L10: 10* | M10: 14* | N10: 38 | O10: 1 277
A11: 9 | B11: 10 | C11: CZE 53 | D11: 2204-021 | E11: Štrambach Ladislav | F11: 1954 | G11: 8 | H11: 10 | I11: 10 | J11: 9 | K11: 10 | L11: 11* | M11: 11* | N11: 47 | O11: 1 139
A12: X | B12: 11 | C12: CZE 206 | D12: 2003-008 | E12: Haken Vladimír | F12: 1982 | G12: 7 | H12: 13* | I12: 11 | J12: 10 | K12: 11 | L12: 8 | M12: 12* | N12: 47 | O12: 1 015
A13: X | B13: 12 | C13: CZE 121 | D13: 2109-591 | E13: Diviš Michal | F13: 1974 | G13: 12 | H13: 15* | I13: 13 | J13: 12 | K13: 5 | L13: 9 | M13: 16* | N13: 51 | O13: 902
A14: X | B14: 13 | C14: CZE 44 | D14: 2110-150 | E14: Vránová Markéta | F14: 1991 | G14: 10 | H14: 12 | I14: 12 | J14: 11 | K14: DNC* | L14: 12 | M14: 13* | N14: 57 | O14: 797
A15: 10 | B15: 14 | C15: CZE 5 | D15: 2110-006 | E15: Kučera Petr sen. | F15: 1947 | G15: 9 | H15: 11 | I15: 14 | J15: DNC* | K15: DNC* | L15: DNC | M15: 10 | N15: 64 | O15: 701
A16: 11 | B16: 15 | C16: CZE 125 | D16: 1503-181 | E16: Hrubá Dagmar | F16: 1967 | G16: 13 | H16: DNC* | I16: DNC* | J16: DNC | K16: DNC | L16: DNC | M16: 8 | N16: 81 | O16: 611
A17: X | B17: 16 | C17: CZE 27 | D17: 2411-060 | E17: Raška Zdeněk | F17: 1944 | G17: 14 | H17: 14 | I17: DNF* | J17: DNF* | K17: DNC | L17: DNC | M17: 15 | N17: 83 | O17: 527
A18: 12 | B18: 17 | C18: CZE 65 | D18: 2110-038 | E18: Rašovský Jaroslav | F18: 1948 | G18: DNF* | H18: DNC* | I18: 15 | J18: 13 | K18: DNC | L18: DNC | M18: 17 | N18: 85 | O18: 448
A19: X | B19: 18 | C19: CZE 54 | D19: 2103-221 | E19: Fanta Miroslav | F19: 1966 | G19: DNF* | H19: 16 | I19: DNC* | J19: DNC | K19: DNC | L19: DNC | M19: DNC | N19: 96 | O19: 373
A20: X | B20: 19 | C20: CZE 211 | D20: 7006-030 | E20: Pospíšilová Klára | F20: 1995 | G20: DNF* | H20: DNC* | I20: DNC | J20: DNC | K20: DNC | L20: DNC | M20: DNF | N20: 100 | O20: 303

Sheet 161503-3C
B1: Senior Cup
A2: 1 | B2: 1 | C2: CZE 2 | D2: 1607-119 | E2: Himmel Jiří | F2: 1972 | G2: 3* | H2: 1 | I2: 1 | J2: 1 | K2: 3 | L2: 3 645
A3: 2 | B3: 2 | C3: CZE 19 | D3: 7019-144 | E3: Hrubý Pavel | F3: 1964 | G3: 2 | H3: 2 | I3: 4* | J3: 3 | K3: 7 | L3: 2 742
A4: 3 | B4: 3 | C4: CZE 5 | D4: 2110-006 | E4: Kučera Petr sen. | F4: 1947 | G4: 1 | H4: 3 | I4: 3 | J4: 6* | K4: 7 | L4: 2 213
A5: 4 | B5: 4 | C5: CZE 195 | D5: 7019-359 | E5: Dolejš Rudolf | F5: 1961 | L5: 1 839
A6: 5 | B6: 5 | C6: CZE 61 | D6: 1705-001 | E6: Haubold Petr | F6: 1944 | G6: 5* | H6: 4 | I6: 5 | J6: 4 | K6: 13 | L6: 1 548
A7: 6 | B7: 6 | C7: CZE 25 | D7: 1503-180 | E7: Hrubý Roman | F7: 1960 | G7: 8* | H7: 5 | I7: 7 | J7: 5 | K7: 17 | L7: 1 310
A8: 7 | B8: 7 | C8: CZE 125 | D8: 1503-181 | E8: Hrubá Dagmar | F8: 1967 | L8: 1 110
A9: X | B9: 8 | C9: CZE 62 | D9: 1524-010 | E9: Kacálek Zdeněk | F9: 1961 | G9: 7 | H9: 8 | I9: 8* | J9: 8 | K9: 23 | L9: 936
A10: 8 | B10: 9 | C10: CZE 814 | D10: 7019-356 | E10: Švec Ladislav | F10: 1949 | G10: 9 | H10: 10* | I10: 9 | J10: 9 | K10: 27 | L10: 782
A11: 9 | B11: 10 | C11: CZE 30 | D11: 2110-120 | E11: Vykydal Jaroslav | F11: 1947 | G11: 11 | H11: DNF* | I11: 10 | J11: 11 | K11: 32 | L11: 645
A12: 10 | B12: 11 | C12: CZE 138 | D12: 1503-186 | E12: Hromádka Josef | F12: 1944 | G12: 10 | H12: 9 | I12: DNC* | J12: DNC | K12: 33 | L12: 521
A13: 11 | B13: 12 | C13: CZE 331 | D13: 1402-334 | E13: Hrubý Jiří | F13: 1958 | G13: 12 | H13: 11 | I13: DNC* | J13: 12 | K13: 35 | L13: 407
A14: X | B14: 13 | C14: CZE 114 | D14: 1503-222 | E14: Nejtek Petr | F14: 1987 | G14: DNC* | H14: DNC | I14: DNC | J14: 10 | K14: 38 | L14: 303

Sheet 161617-7P
B1: Nechranická buchta
A2: 1 | B2: 1 | C2: CZE 15 | D2: 2110-050 | E2: Kučera Petr jun. | F2: 1986 | G2: 3* | H2: 1 | I2: 1 | J2: 1 | K2: 3 | L2: 10 239
A3: 2 | B3: 2 | C3: CZE 10 | D3: 7019-192 | E3: Horký Adam | F3: 1983 | G3: 1 | H3: 2 | I3: 2 | J3: 3* | K3: 5 | L3: 8 132
A4: 3 | B4: 3 | C4: CZE 110 | D4: 2001-096 | E4: Kamenský Radim | F4: 1976 | G4: 2 | H4: 4* | I4: 4 | J4: 2 | K4: 8 | L4: 6 899
A5: 4 | B5: 4 | C5: CZE 6 | D5: 1607-158 | E5: Slíva Jakub | F5: 1988 | G5: 6* | H5: 3 | I5: 3 | J5: 4 | K5: 10 | L5: 6 025
A6: 5 | B6: 5 | C6: CZE 8 | D6: 2405-133 | E6: Mielec Lubomír | F6: 1950 | G6: 12* | H6: 6 | I6: 5 | J6: 5 | K6: 16 | L6: 5 346
A7: 6 | B7: 6 | C7: CZE 45 | D7: 2110-124 | E7: Vrána Petr | F7: 1958 | G7: 4 | H7: 9* | I7: 9 | J7: 8 | K7: 21 | L7: 4 792
A8: 7 | B8: 7 | C8: CZE 21 | D8: 2101-375 | E8: Pospíšil Martin | F8: 1964 | G8: 8 | H8: 10* | I8: 7 | J8: 6 | K8: 21 | L8: 4 323
A9: 8 | B9: 8 | C9: CZE 19 | D9: 7019-144 | E9: Hrubý Pavel | F9: 1964 | G9: 9 | H9: 8 | I9: 8 | J9: 10* | K9: 25 | L9: 3 917
A10: 9 | B10: 9 | C10: CZE 22 | D10: 7019-339 | E10: Slíva Martin | F10: 1964 | G10: 7 | H10: 7 | I10: 11* | J10: 11 | K10: 25 | L10: 3 559
A11: 10 | B11: 10 | C11: CZE 195 | D11: 7019-359 | E11: Dolejš Rudolf | F11: 1961 | G11: 11 | H11: 5 | I11: 10 | J11: 13* | K11: 26 | L11: 3 239
A12: 11 | B12: 11 | C12: CZE 5 | D12: 2110-006 | E12: Kučera Petr sen. | F12: 1947 | G12: 16* | H12: 14 | I12: 6 | J12: 7 | K12: 27 | L12: 2 949
A13: 12 | B13: 12 | C13: CZE 113 | D13: 2001-086 | E13: Kamenský Pavel | F13: 1974 | G13: 10 | H13: 11 | I13: 15* | J13: 9 | K13: 30 | L13: 2 685
A14: 13 | B14: 13 | C14: CZE 2 | D14: 1607-119 | E14: Himmel Jiří | F14: 1972 | G14: 14* | H14: 13 | I14: 12 | J14: 14 | K14: 39 | L14: 2 441
A15: 14 | B15: 14 | C15: CZE 61 | D15: 1705-001 | E15: Haubold Petr | F15: 1944 | G15: 13 | H15: 12 | I15: 17* | J15: 16 | K15: 41 | L15: 2 216
A16: X | B16: 15 | C16: SVK 46 | D16: 9901-001 | E16: Beránek Petr | F16: 1974 | G16: 5 | H16: 18 | I16: 19* | J16: 18 | K16: 41 | L16: 2 006
A17: 15 | B17: 16 | C17: CZE 24 | D17: 1607-121 | E17: Hnitka Martin | F17: 1972 | G17: 15 | H17: 16 | I17: 18* | J17: 12 | K17: 43 | L17: 1 810
A18: 16 | B18: 17 | C18: CZE 251 | D18: 2001-223 | E18: Hrubá Martina | F18: 1992 | G18: 19* | H18: 15 | I18: 16 | J18: 15 | K18: 46 | L18: 1 626
A19: 17 | B19: 18 | C19: CZE 25 | D19: 1503-180 | E19: Hrubý Roman | F19: 1960 | G19: 18 | H19: 17 | I19: 13 | J19: 19* | K19: 48 | L19: 1 452
A20: 18 | B20: 19 | C20: CZE 125 | D20: 1503-181 | E20: Hrubá Dagmar | F20: 1967 | G20: 17 | H20: 19* | I20: 14 | J20: 17 | K20: 48 | L20: 1 288
A21: 19 | B21: 20 | C21: CZE 86 | D21: 1526-044 | E21: Mrůzek Pavel | F21: 1963 | G21: 20* | H21: 20 | I21: 20 | J21: 20 | K21: 60 | L21: 1 132
A22: 20 | B22: 21 | C22: CZE 138 | D22: 1503-186 | E22: Hromádka Josef | F22: 1944 | G22: 21 | H22: 21 | I22: 21 | J22: DNC* | K22: 63 | L22: 984
A23: 21 | B23: 22 | C23: CZE 331 | D23: 1402-334 | E23: Hrubý Jiří | F23: 1958 | G23: 22* | H23: 22 | I23: 22 | J23: 21 | K23: 65 | L23: 842
A24: 22 | B24: 23 | D24: 7019-387 | E24: Hrubý Kryštof | F24: 1997 | G24: DNS* | H24: DNC | I24: DNC | J24: DNC | K24: 75 | L24: 707
A25: 23 | C25: CZE 30 | D25: 2110-120 | E25: Vykydal Jaroslav | F25: 1947 | G25: DNC* | H25: DNC | I25: DNC | J25: DNC | K25: 75 | L25: 0

Sheet 162154-7P
B1: Vítr z vinohradů
A2: 1 | B2: 1 | C2: CZE 10 | D2: 7019-192 | E2: Horký Adam | F2: 1983 | G2: 2* | H2: 1 | I2: 1 | J2: 1 | K2: 3 | L2: 11 844
A3: 2 | B3: 2 | C3: CZE 15 | D3: 2110-050 | E3: Kučera Petr jun. | F3: 1986 | G3: 1 | H3: 3* | I3: 3 | J3: 2 | K3: 6 | L3: 9 737
A4: 3 | B4: 3 | C4: CZE 110 | D4: 2001-096 | E4: Kamenský Radim | F4: 1976 | G4: 3 | H4: 11* | I4: 2 | J4: 5 | K4: 10 | L4: 8 505
A5: X | B5: 4 | C5: SVK 1 | D5: 9901-013 | E5: Pollák Patrik | F5: 1972 | G5: 5* | H5: 4 | I5: 4 | J5: 4 | K5: 12 | L5: 7 630
A6: 4 | B6: 5 | C6: CZE 6 | D6: 1607-158 | E6: Slíva Jakub | F6: 1988 | G6: 4 | H6: 6* | I6: 5 | J6: 6 | K6: 15 | L6: 6 952
A7: X | B7: 6 | C7: SVK 241 | D7: 9901-002 | E7: Potucký Martin | F7: 1987 | G7: 26 | H7: 32* | I7: 22 | J7: 29 | K7: 77 | L7: 6 397
A8: 5 | B8: 7 | C8: CZE 104 | D8: 7019-372 | E8: Čech Petr | F8: 1969 | G8: 6 | H8: 10* | I8: 7 | J8: 9 | K8: 22 | L8: 5 929
A9: X | B9: 8 | C9: SVK 17 | D9: 9901-008 | E9: Beránek Karol | F9: 1964 | G9: 14* | H9: 5 | I9: 6 | J9: 12 | K9: 23 | L9: 5 523
A10: 6 | B10: 9 | C10: CZE 21 | D10: 2101-375 | E10: Pospíšil Martin | F10: 1964 | G10: 13 | H10: 2 | I10: 16* | J10: 10 | K10: 25 | L10: 5 165
A11: X | B11: 10 | C11: SVK 4 | D11: 9901-001 | E11: Heško Marcel | F11: 1975 | G11: 10* | H11: 9 | I11: 10 | J11: 7 | K11: 26 | L11: 4 844
A12: 7 | B12: 11 | C12: CZE 31 | D12: 2413-001 | E12: Král Jiří | F12: 1974 | G12: 9 | H12: 13 | I12: 8 | J12: DNF* | K12: 30 | L12: 4 555
A13: X | B13: 12 | C13: SVK 77 | D13: 9901-003 | E13: Čarný Oliver | F13: 1999 | G13: 8 | H13: 12 | I13: 13 | J13: 30* | K13: 33 | L13: 4 290
A14: X | B14: 13 | C14: HUN 71 | D14: 9905-002 | E14: Utassy Lorand | F14: 1976 | G14: 11 | H14: 14* | I14: 11 | J14: 13 | K14: 35 | L14: 4 047
A15: 8 | B15: 14 | C15: CZE 19 | D15: 7019-144 | E15: Hrubý Pavel | F15: 1964 | G15: 15* | H15: 15 | I15: 12 | J15: 8 | K15: 35 | L15: 3 822
A16: 9 | B16: 15 | C16: CZE 138 | D16: 7019-339 | E16: Slíva Martin | F16: 1964 | G16: 12 | H16: 7 | I16: 17 | J16: 20* | K16: 36 | L16: 3 612
A17: 10 | B17: 16 | C17: CZE 113 | D17: 2001-086 | E17: Kamenský Pavel | F17: 1974 | G17: 17 | H17: 21* | I17: 19 | J17: 11 | K17: 47 | L17: 3 416
A18: 11 | B18: 17 | C18: CZE 45 | D18: 2110-124 | E18: Vrána Petr | F18: 1958 | G18: 23* | H18: 16 | I18: 14 | J18: 23 | K18: 53 | L18: 3 231
A19: 12 | B19: 18 | C19: CZE 2 | D19: 1607-119 | E19: Himmel Jiří | F19: 1972 | G19: 22* | H19: 18 | I19: 21 | J19: 18 | K19: 57 | L19: 3 058
A20: X | B20: 19 | C20: HUN 181 | D20: 9905-007 | E20: Nagy-Pál Levente | F20: 1980 | G20: 19 | H20: 19 | I20: 20 | J20: 25* | K20: 58 | L20: 2 893
A21: 13 | B21: 20 | C21: CZE 251 | D21: 2001-223 | E21: Hrubá Martina | F21: 1992 | G21: 20 | H21: 31* | I21: 25 | J21: 14 | K21: 59 | L21: 2 737
A22: X | B22: 21 | C22: SVK 7 | D22: 9901-004 | E22: Čarný Marcel | F22: 1963 | G22: 16 | H22: 25 | I22: 34* | J22: 19 | K22: 60 | L22: 2 589
A23: 14 | B23: 22 | C23: CZE 8 | D23: 2405-133 | E23: Mielec Lubomír | F23: 1950 | G23: 18 | H23: 20 | I23: 23 | J23: 24* | K23: 61 | L23: 2 447
A24: 15 | B24: 23 | C24: CZE 61 | D24: 1705-001 | E24: Haubold Petr | F24: 1944 | G24: 28* | H24: 22 | I24: 24 | J24: 15 | K24: 61 | L24: 2 312
A25: X | B25: 24 | C25: SVK 46 | D25: 9901-012 | E25: Beránek Peter | F25: 1974 | G25: 24 | H25: 17 | I25: 26* | J25: 22 | K25: 63 | L25: 2 183
A26: 16 | B26: 25 | C26: CZE 5 | D26: 2110-006 | E26: Kučera Petr sen. | F26: 1947 | G26: 25 | H26: 26* | I26: 18 | J26: 21 | K26: 64 | L26: 2 059
A27: 17 | B27: 26 | C27: CZE 53 | D27: 2204-021 | E27: Štrambach Ladislav | F27: 1954 | G27: 33* | H27: 23 | I27: 15 | J27: 28 | K27: 66 | L27: 1 940
A28: X | B28: 27 | C28: SVK 26 | D28: 9901-005 | E28: Duchnovský Milan | F28: 1962 | G28: 32* | H28: 27 | I28: 31 | J28: 17 | K28: 75 | L28: 1 825
A29: X | B29: 28 | C29: HUN 63 | D29: 9905-006 | E29: Gilicze Tamas | F29: 1966 | G29: 27 | H29: 34* | I29: 33 | J29: 16 | K29: 76 | L29: 1 714
A30: X | B30: 29 | C30: SVK 31 | D30: 9901-009 | E30: Pollák Jozef | F30: 1945 | G30: 21 | H30: 29* | I30: 29 | J30: 27 | K30: 77 | L30: 1 608
A31: X | B31: 30 | C31: SVK 25 | D31: 9901-002 | E31: Kučinský Lubomír | F31: 1968 | G31: 26 | H31: 32* | I31: 22 | J31: 29 | K31: 77 | L31: 1 505
A32: X | B32: 31 | C32: HUN 196 | D32: 9905-005 | E32: Santa Bence | F32: 1996 | G32: 29 | H32: 24 | I32: 35* | J32: 31 | K32: 84 | L32: 1 405
A33: 18 | B33: 32 | C33: CZE 125 | D33: 1503-181 | E33: Hrubá Dagmar | F33: 1967 | G33: 30 | H33: 28 | I33: 27 | J33: DNS* | K33: 85 | L33: 1 308
A34: X | B34: 33 | C34: CZE 206 | D34: 2003-008 | E34: Haken Vladimír | F34: 1982 | G34: 36* | H34: 35 | I34: 30 | J34: 26 | K34: 91 | L34: 1 215
A35: 19 | B35: 34 | C35: CZE 25 | D35: 1503-180 | E35: Hrubý Roman | F35: 1960 | G35: 31 | H35: 33 | I35: 28 | J35: DNS* | K35: 92 | L35: 1 124
A36: X | B36: 35 | C36: HUN 661 | D36: 9905-008 | E36: Pollacsek Kálmán | F36: 1996 | G36: 34* | H36: 30 | I36: 32 | J36: 32 | K36: 94 | L36: 1 036
A37: X | B37: 36 | C37: HUN 333 | D37: 9905-001 | E37: Takácsy Lilla | F37: 1998 | G37: 38 | H37: 37 | I37: 36 | J37: DNF* | K37: 111 | L37: 950
A38: 20 | B38: 37 | C38: CZE 22 | D38: 1503-186 | E38: Hromádka Josef | F38: 1944 | G38: 37 | H38: 36 | I38: DNF* | J38: DNC | K38: 113 | L38: 867
A39: X | B39: 38 | C39: CZE 54 | D39: 2103-221 | E39: Fanta Miroslav | F39: 1966 | G39: 35 | H39: DNC* | I39: DNC | J39: DNC | K39: 115 | L39: 786
A40: 21 | B40: 39 | C40: CZE 30 | D40: 2110-120 | E40: Vykydal Jaroslav | F40: 1947 | G40: DNF* | H40: DNC | I40: DNC | J40: DNC | K40: 120 | L40: 707

Sheet 162207-3M
B1: Tvarůžková regata
A2: 1 | B2: 1 | C2: CZE 110 | D2: 2001-096 | E2: Kamenský Radim | F2: 1976 | G2: 2* | H2: 1 | I2: 2 | J2: 1 | K2: 4 | L2: 3 915
A3: 2 | B3: 2 | C3: CZE 15 | D3: 2110-050 | E3: Kučera Petr jun. | F3: 1986 | G3: 1 | H3: 2* | I3: 1 | J3: 2 | K3: 4 | L3: 3 012
A4: 3 | B4: 3 | C4: CZE 31 | D4: 2413-001 | E4: Král Jiří | F4: 1974 | G4: 3* | H4: 3 | I4: 3 | J4: 3 | K4: 9 | L4: 2 484
A5: 4 | B5: 4 | C5: CZE 5 | D5: 2110-006 | E5: Kučera Petr sen. | F5: 1947 | G5: 6 | H5: 9* | I5: 4 | J5: 4 | K5: 14 | L5: 2 109
A6: 5 | B6: 5 | C6: CZE 45 | D6: 2110-124 | E6: Vrána Petr | F6: 1958 | G6: 7* | H6: 5 | I6: 6 | J6: 7 | K6: 18 | L6: 1 818
A7: X | B7: 6 | C7: CZE 206 | D7: 2003-008 | E7: Haken Vladimír | F7: 1982 | G7: 4 | H7: 6 | I7: 8 | J7: 10* | K7: 18 | L7: 1 581
A8: 6 | B8: 7 | C8: CZE 53 | D8: 2204-021 | E8: Štrambach Ladislav | F8: 1954 | G8: 5 | H8: 7 | I8: 7 | J8: 8* | K8: 19 | L8: 1 380
A9: 7 | B9: 8 | C9: CZE 8 | D9: 2405-133 | E9: Mielec Lubomír | F9: 1950 | G9: 11* | H9: 8 | I9: 5 | J9: 6 | K9: 19 | L9: 1 206
A10: 8 | B10: 9 | C10: CZE 25 | D10: 1503-180 | E10: Hrubý Roman | F10: 1960 | G10: 8 | H10: 13* | I10: 9 | J10: 5 | K10: 22 | L10: 1 053
A11: 9 | B11: 10 | C11: CZE 113 | D11: 2001-086 | E11: Kamenský Pavel | F11: 1974 | G11: 12 | H11: 4 | I11: 10 | J11: 13* | K11: 26 | L11: 915
A12: X | B12: 11 | C12: CZE 67 | D12: 2110-149 | E12: Marek Michal | F12: 1991 | G12: 10 | H12: 10 | I12: 13* | J12: 11 | K12: 31 | L12: 791
A13: 10 | B13: 12 | C13: CZE 125 | D13: 1503-181 | E13: Hrubá Dagmar | F13: 1967 | G13: 9 | H13: 12* | I13: 11 | J13: 12 | K13: 32 | L13: 678
A14: 11 | B14: 13 | C14: CZE 61 | D14: 1705-001 | E14: Haubold Petr | F14: 1944 | G14: 13 | H14: 11 | I14: 14* | J14: 9 | K14: 33 | L14: 574
A15: X | B15: 14 | C15: CZE 27 | D15: 2411-060 | E15: Raška Zdeněk | F15: 1944 | G15: 14* | H15: 14 | I15: 12 | J15: 14 | K15: 40 | L15: 477
A16: 12 | B16: 15 | C16: CZE 65 | D16: 2110-038 | E16: Rašovský Jaroslav | F16: 1948 | G16: 15* | H16: 15 | I16: 15 | J16: 15 | K16: 45 | L16: 387
A17: 13 | B17: 16 | C17: CZE 30 | D17: 2110-120 | E17: Vykydal Jaroslav | F17: 1947 | G17: DNS* | H17: DNS | I17: DNS | J17: DNS | K17: 51 | L17: 303

Sheet 161622-7P
B1: Cena YCN
A2: 1 | B2: 1 | C2: CZE 10 | D2: 7019-192 | E2: Horký Adam | F2: 1983 | G2: 11 | H2: ČWA | I2: 1* | J2: 1 | K2: 1 | L2: 1 | M2: 1 | N2: 1 | O2: 6 | P2: 7997
A3: 2 | B3: 2 | C3: CZE 6 | D3: 1607-158 | E3: Slíva Jakub | F3: 1988 | G3: 11 | H3: Yacht Club Nechranice | I3: 2* | J3: 2 | K3: 2 | L3: 2 | M3: 2 | N3: 2 | O3: 12 | P3: 5890
A4: 3 | B4: 3 | C4: CZE 22 | D4: 7019-339 | E4: Slíva Martin | F4: 1964 | G4: 11 | H4: ČWA | I4: 3 | J4: 4 | K4: 3 | L4: 4 | M4: 5* | N4: 4 | O4: 21 | P4: 4657
A5: 4 | B5: 4 | C5: CZE 19 | D5: 7019-144 | E5: Hrubý Pavel | F5: 1964 | G5: 11 | H5: ČWA | I5: 4 | J5: 8* | K5: 4 | L5: 5 | M5: 6 | N5: 3 | O5: 28 | P5: 3782
A6: 5 | B6: 5 | C6: CZE 113 | D6: 2001-086 | E6: Kamenský Pavel | F6: 1974 | G6: 11 | H6: Yacht Club Velké Dářko | I6: 6 | J6: 6 | K6: 9* | L6: 3 | M6: 4 | N6: 5 | O6: 29 | P6: 3104
A7: X | B7: 6 | C7: CZE 29 | D7: 1401-463 | E7: Konig Josef | F7: 1965 | G7: 11 | H7: TJ Lokomotiva Plzeň, JO | I7: 9* | J7: 5 | K7: 5 | L7: 7 | M7: 3 | N7: 7 | O7: 34 | P7: 2550
A8: 6 | B8: 7 | C8: CZE 5 | D8: 2110-006 | E8: Kučera Petr sen. | F8: 1947 | G8: 11 | H8: TJ Rapid Brno | I8: 5 | J8: 3 | K8: 6 | L8: DNS* | M8: 9 | N8: 6 | O8: 39 | P8: 2081
A9: 7 | B9: 8 | C9: CZE 2 | D9: 1607-119 | E9: Himmel Jiří | F9: 1972 | G9: 11 | H9: Yacht Club Nechranice | I9: 8 | J9: 10* | K9: 10 | L9: 6 | M9: 7 | N9: 8 | O9: 43 | P9: 1675
A10: 8 | B10: 9 | C10: CZE 24 | D10: 1607-121 | E10: Hnitka Martin | F10: 1972 | G10: 11 | H10: Yacht Club Nechranice | I10: 7 | J10: 7 | K10: 7 | L10: 8 | M10: 8 | N10: 9* | O10: 45 | P10: 1317
A11: 9 | B11: 10 | C11: CZE 61 | D11: 1705-001 | E11: Haubold Petr | F11: 1944 | G11: 11 | H11: TJ Delfín Jablonec | I11: 10* | J11: 9 | K11: 8 | L11: 9 | M11: 10 | N11: 10 | O11: 55 | P11: 997
A12: 10 | B12: 11 | C12: CZE 138 | D12: 1503-186 | E12: Hromádka Josef | F12: 1944 | G12: 11 | H12: TJ LOKOMOTIVA Cheb | I12: 11 | J12: DNF* | K12: DNF | L12: DNC | M12: DNC | N12: DNC | O12: 71 | P12: 707
A13: 10
A14: 11
A15: X
A16: 12
A17: 13

Sheet Members
A1: 78 | B1: Altmanová Kateřina | C1: F
B2: Beerová Eliška | C2: F
A3: 40 | B3: Haltmarová Dominika | C3: F
A4: 8 | B4: Himmelová Klára | C4: F
A5: 4 | B5: Hrubá Dagmar | C5: F
A6: 44 | B6: Hrubá Martina | C6: F
B7: Martinova Nicola | C7: F
A8: 333 | B8: Rašková Adéla | C8: F
B9: Rašková Kateřina | C9: F
B10: Říčanová Nicol | C10: F
A11: 177 | B11: Sadílková Nela | C11: F
B12: Štěpánková Markéta | C12: F
A13: 76 | B13: Švíková Katrina | C13: F
A14: 130 | B14: Žlabová Markéta | C14: F
A15: 61 | B15: Altman Tomáš | C15: M
A16: 29 | B16: Čech Petr | C16: M
A17: 77 | B17: Čech Petr | C17: M
A18: 166 | B18: Diviš Lukáš | C18: M
A19: 38 | B19: Dolejš Rudolf | C19: M
A20: 67 | B20: Drda David | C20: M
B21: Dvořák Dalibor | C21: M
A22: 22 | B22: Dvořák Michal | C22: M
A23: 2403 | B23: Dvořák Rudolf | C23: M
A24: 34 | B24: Haubold Petr | C24: M
A25: 1116 | B25: Himmel Jiří | C25: M
A26: 787 | B26: Himmel Jiří | C26: M
A27: 59 | B27: Hnitka Martin | C27: M
A28: 1111 | B28: Horáček Jonáš | C28: M
A29: 42 | B29: Horký Adam | C29: M
A30: 41 | B30: Hrdina Patrik | C30: M
A31: 39 | B31: Hromádka Josef | C31: M
A32: 781 | B32: Hrubý Jiří | C32: M
A33: 30 | B33: Hrubý Kryštof | C33: M
A34: 10 | B34: Hrubý Pavel | C34: M
A35: 60 | B35: Hrubý Roman | C35: M
B36: Hulinský Martin | C36: M
A37: 49 | B37: Kalabis Petr | C37: M
A38: 141 | B38: Kamenský Pavel | C38: M
A39: 744 | B39: Kamenský Radim | C39: M
B40: Kir Milan | C40: M
A41: 79 | B41: Koblasa David | C41: M
A42: 125 | B42: König Josef | C42: M
A43: 120 | B43: Král Jiří | C43: M
A44: 784 | B44: Kroupa Štěpán | C44: M
A45: 48 | B45: Kučera Petr jun. | C45: M
A46: 81 | B46: Kučera Petr sen. | C46: M
A47: 788 | B47: Kvašnovský Michael | C47: M
A48: 37 | B48: Lavický Karel | C48: M
A49: 25 | B49: Loužek Karel | C49: M
A50: 6 | B50: Mařík Kristian | C50: M
A51: 144 | B51: Mielec Lubomír | C51: M
B52: Mika Radek | C52: M
A53: 15 | B53: Mikulec Martin | C53: M
B54: Mikulec Martin | C54: M
A55: 66 | B55: Mrůzek Pavel | C55: M
B56: Muller Ondřej | C56: M
A57: 777 | B57: Myška Filip | C57: M
A58: 147 | B58: Netík Pavel | C58: M
B59: Netík Pavel | C59: M
A60: 7 | B60: Neumann Lukáš | C60: M
B61: Neveloš Tibor | C61: M
B62: Nevološ Adam | C62: M
A63: 17 | B63: Pospíšil Martin | C63: M
A64: 86 | B64: Raška Marek | C64: M
A65: 35 | B65: Rašovský Jaroslav | C65: M
A66: 19 | B66: Rott Petr | C66: M
A67: 31 | B67: Sadílek Adam | C67: M
A68: 73 | B68: Sehnal Pavel | C68: M
A69: 53 | B69: Sehnal Pavel | C69: M
A70: 116 | B70: Skřepek Jan | C70: M
B71: Skřepek Šimon | C71: M
A72: 786 | B72: Sladký Martin | C72: M
A73: 195 | B73: Slíva Jakub | C73: M
A74: 24 | B74: Slíva Martin | C74: M
A75: 113 | B75: Šplíchal Filip | C75: M
A76: 110 | B76: Šplíchal Jiří | C76: M
A77: 612 | B77: Štěpánek Jan | C77: M
B78: Štěpánský Adam | C78: M
A79: 5 | B79: Štrambach Ladislav | C79: M
B80: Švec Ladislav | C80: M
A81: 404 | B81: Toth Martin | C81: M
A82: 45 | B82: Vazač Jan | C82: M
A83: 101 | B83: Vrána Petr | C83: M
A84: 251 | B84: Vykydal Jaroslav | C84: M
B85: Zíma Jakub | C85: M

Sheet Categories
A1: Muži | B1: M | C1: Ženy | D1: F | G1: Pořadí
A2: Min | B2: Max | C2: Min | D2: Max | E2: Zkratka | F2: Kategorie
A3: 0 | B3: 35 | C3: 0 | D3: 30 | E3: - | F3: - | G3: 5 | H3: 27
A4: 36 | B4: 45 | C4: 31 | D4: 40 | E4: M | F4: Master | G4: 5 | H4: 17
A5: 46 | B5: 55 | C5: 41 | D5: 50 | E5: GM | F5: Grand Master | G5: 8 | H5: 29
A6: 56 | B6: 1000 | C6: 51 | D6: 1000 | E6: V | F6: Veteran | G6: 11 | H6: 28

Sheet List1
A1: Cislo | B1: Jméno | C1: Klub | D1: Člen
A2: 1 | B2: k propůjčení | C2: ČWA Lavický Karel
A3: 2 | B3: Vavřík Petr | C3: Santi Ostrava
A4: 3 | B4: Rott Jan | C4: YC Plzeň | D4: ano
A5: 4 | B5: Sladký Martin ml. | C5: ČWA | D5: ano
A6: 5 | B6: Kučera Petr | C6: Rapid Brno | D6: ano
A7: 6 | B7: Jakub Slíva | C7: YC Nechranice | D7: ano
A8: 7 | B8: Toth Martin | C8: ČWA | D8: ano
A9: 8 | B9: Mielec Lubomír sen. | C9: SKP Ostrava | D9: ano
A10: 9 | B10: Mielec lubomír jun. | C10: SKP Ostrava
A11: 10 | B11: Horký Adam | C11: ČWA | D11: ano
A12: 11 | B12: Altman Tomáš | C12: SSTK Plzeň | D12: ano
A13: 12 | B13: Diviš Ivo | C13: YC Brno
A14: 13 | B14: Koblasa David | C14: Loko Cheb | D14: ano
A15: 14 | B15: Koblasa Lukáš | C15: Loko Cheb
A16: 15 | B16: Kučera Petr jun. | C16: Rapid Brno | D16: ano
A17: 16 | B17: Slíva Martin | C17: ČWA | D17: ano
A18: 17 | B18: Hrdina Patrik | C18: ASK | D18: ano
A19: 19 | B19: Hrubý Pavel | C19: ČWA | D19: ano
A20: 20 | B20: Markýzo
A21: 21 | B21: Pospíšil Martin | C21: Rapid Brno | D21: ano
A22: 22 | B22: Slíva Martin | C22: ČWA | D22: ano
A23: 23 | B23: Kovařík Dominik | C23: ČWA
A24: 24 | B24: Hnitka Martin | C24: YC Nechranice | D24: ano
A25: 25 | B25: Hrubý Roman | C25: Loko Cheb | D25: ano
A26: 26 | B26: Slívová Jana | C26: YC Nechranice | D26: ano
A27: 27 | B27: Raška Zdeněk | C27: TJ Baník Karviná
A28: 29 | B28: König Josef | C28: Loko Plzeň | D28: ano
A29: 30 | B29: Vykydal Jaroslav | C29: Rapid Brno | D29: ano
A30: 31 | B30: Král Jiří | C30: HTJ Odra Ostrava | D30: ano
A31: 32 | B31: Stránký Martin | C31: Loko Cheb
A32: 33 | B32: Rott Petr | C32: YC Plzeň | D32: ano
A33: 34 | B33: Loužek Karel | C33: YC Plzeň | D33: ano
A34: 35 | B34: Mařík Kristian | C34: Delfín Jablonec | D34: ano
A35: 36 | B35: Šplíchal Jiří sen. | C35: YC Plzeň
A36: 37 | B36: Šplíchal Filip. | C36: YC Plzeň | D36: ano
A37: 38 | B37: Vaněk Václav | C37: Slovan ML | D37: ano
A38: 39 | B38: Šplíchal Jiří jun | C38: YC Plzeň | D38: ano
A39: 40 | B39: Štěpánský Adam | C39: TJ Slavia | D39: ano
A40: 41 | B40: Horáček Jonáš | C40: Delfín Jablonec | D40: ano
A41: 42 | B41: Hanzi Shafer | C41: ČWA | D41: ano
A42: 43 | B42: Roušal Jar.
A43: 44 | B43: Vránová Markéta | C43: Rapid Brno | D43: ano
A44: 45 | B44: Vrána Petr | C44: rapid Brno | D44: ano
A45: 46 | B45: Straček Oldřich | C45: Ostrava
A46: 47 | B46: TJ Rapid | C46: TJ Rapid
A47: 48 | B47: Čech Petr | C47: Delfín Jablonec | D47: ano
A48: 49 | B48: Sadílek Adam | C48: Delfín Jablonec | D48: ano
A49: 50 | B49: Mikulec Martin | C49: TJ Rapid | D49: ano
A50: 51 | B50: Novotná Eva | C50: ČWA
A51: 52 | B51: Juptner Patrik | C51: Vodní sp. Brno
A52: 53 | B52: Štrambach Ladislav | C52: MEZ Mohelnice | D52: ano
A53: 54 | B53: Fanta Miroslav | C53: TJ L SP Brno
A54: 55 | B54: Kudláček Pavel | C54: ČWA | D54: ano
A55: 57 | B55: Ouřada Jaroslav | C55: Loko Cheb | D55: ano
A56: 58 | B56: Žlabová Markéta | C56: ČWA | D56: ano
A57: 59 | B57: Hrdina Pavelk | C57: ASK | D57: ano
A58: 60 | B58: Hrdinová Patricie | C58: ASK | D58: ano
A59: 61 | B59: Haubold Petr | C59: Delfín Jablonec | D59: ano
A60: 62 | B60: Kocálek Zdeněk | C60: YC Nové Sedlo
A61: 63 | B61: Drda David | C61: Delfín Jablonec | D61: ano
A62: 65 | B62: Rašovský Jar. | C62: Rapid Brno | D62: ano
A63: 66 | B63: Ovsík Martin | C63: ČWA | D63: ano
A64: 67 | B64: Marek Michal | C64: TJ Rapid | D64: ano
A65: 68 | B65: Hartman Pavel | C65: ČWA | D65: ano
A66: 69 | B66: Šlechta Jiří | C66: ČWA
A67: 70 | B67: ŠebestaLibor | C67: ČWA | D67: ano
A68: 71 | B68: Himmel Klára | C68: YC Nechranice | D68: ano
A69: 72 | B69: Dvořák Dalibor | C69: ČWA | D69: ano
A70: 73 | B70: Štěpánek Jan | C70: Delfín Jablonec | D70: ano
A71: 74 | B71: Neckář | C71: ČWA
A72: 75 | B72: JK Plzeň | C72: JK Plzeň
A73: 76 | B73: Raška Marek | C73: ČWA | D73: ano
A74: 77 | B74: Rašková Adéla | C74: ČWA | D74: ano
A75: 78 | B75: Skřepek Jan | C75: Rapid Brno | D75: ano
A76: 79 | B76: Himmel Jiří | C76: YC Nechranice | D76: ano
A77: 80 | B77: Sadílková Nela | C77: Delfín Jablonec | D77: ano
A78: 81 | B78: Himmel Jiří jun | C78: YC Nechranice | D78: ano
A79: 83 | B79: Nejtek Petr | C79: Loko Cheb
A80: 85 | B80: Kroupa Štěpán | C80: Delfín Jablonec | D80: ano
A81: 86 | B81: Mrůzek Pavel | C81: JC Regent | D81: ano
A82: 88 | B82: Štěpánková Markéta | C82: Delfín Jablonec | D82: ano
A83: 89 | B83: Švíková Katrina | C83: Cere | D83: ano
A84: 92 | B84: Podzimek Petr | C84: Loko Cheb
A85: 94 | B85: Novotný Antonín | C85: Rapid Brno
A86: 96 | B86: Čech Milan | C86: ČWA
A87: 99 | B87: Dvořák Rudolf | C87: Cere | D87: ano
A88: 101 | B88: Koblasa Stanislav | C88: Loko Cheb | D88: ano
A89: 104 | B89: Čech Petr | C89: ČWA | D89: ano
A90: 105 | B90: Škola Jaroslav | C90: Loko Cheb
A91: 109 | B91: Malina Tomáš | C91: identiti nechr | D91: ano
A92: 110 | B92: Kamenský Radim | C92: YC Velké Dářko | D92: ano
A93: 111 | B93: Kalabis Petr | C93: Rapid Brno | D93: ano
A94: 113 | B94: Kamenský Pavel | C94: YC Velké Dářko | D94: ano
A95: 114 | B95: Nejtek Petr | C95: Loko Cheb
A96: 115 | B96: Škola Jaroslav ml. | C96: Loko Cheb
A97: 116 | B97: Netík Pavel | C97: ŽĎAS Jihlava | D97: ano
A98: 117 | B98: Urbánek Zdeněk | C98: MEZ Mohelnice
A99: 118 | B99: Uldrych Josef
A100: 119 | B100: Altmanová Kat | C100: SSTK Plzeň | D100: ano
A101: 120 | B101: Hrubý Jiří | C101: JC PlzeŇ | D101: ano
A102: 121 | B102: Dvořáková Kateřina | C102: Loko Cheb
A103: 123 | B103: Toupal Jan | C103: ČWA | D103: ano
A104: 124 | B104: Hauer Radim | C104: PLK
A105: 125 | B105: Hrubá Dagmar | C105: Loko Cheb | D105: ano
A106: 126 | B106: Dvořák Michal | C106: ČWA | D106: ano
A107: 128 | B107: Dvořák Marek | D107: ano
A108: 130 | B108: Lavický Karel | C108: DIM Bezdrev | D108: ano
A109: 137 | B109: Motz Daniel | C109: ČWA | D109: ano
A110: 138 | B110: Hromádka Josef | C110: Loko Cheb | D110: ano
A111: 141 | B111: Sehnal Pavel | C111: ČWA | D111: ano
A112: 144 | B112: Haltmarová Dominika | C112: ČWA | D112: ano
A113: 147 | B113: Sehnal Pavel jun. | C113: ČWA | D113: ano
A114: 162 | B114: Kment Libor | C114: ČWA | D114: ano
A115: 165 | B115: Škola Jan | C115: Loko Cheb
A116: 166 | B116: Vejrek Miloš | C116: JC Regent | D116: ano
A117: 171 | B117: Mareš jakub | C117: ČWA | D117: ano
A118: 172 | B118: Kocman Zdeněk
A119: 177 | B119: Neumann Lukáš | C119: YC Rodop | D119: ano
A120: 178 | B120: Kvašnovský Michael | C120: ČWA | D120: ano
A121: 191 | B121: Hrubá Andrea | C121: ČWA
A122: 195 | B122: Dolejš Rudolf | C122: ČWA | D122: ano
A123: 202 | B123: Bodlák Pavel | D123: ano
A124: 205 | B124: Ehl Vladimír | C124: WCVD
A125: 206 | B125: Haken Vladimír | C125: WCVD
A126: 208 | B126: Ševčík Martin | C126: WCVD
A127: 211 | B127: Diviš Lukáš | C127: YC Brno | D127: ano
A128: 212 | B128: Pelikán Martin | C128: Rapid Brno
A129: 222 | B129: Vazač Jan | C129: ČWA | D129: ano
A130: 251 | B130: Hrubá Martina | C130: YC Velké Dářko | D130: ano
A131: 331 | B131: Rott Jakub | C131: Poseidon Plzeň
A132: 332 | B132: Hrubý Kryštof | C132: ČWA | D132: ano
A133: 333 | B133: Myška Filip | C133: identiti nechr | D133: ano
A134: 404 | B134: Hala Václav | C134: ČWA | D134: ano
A135: 480 | B135: Šmíd Zdeněk | C135: Mez Mohelnice | D135: ano
A136: 534 | B136: Valenta Jan | C136: ČWA | D136: ano
A137: 612 | B137: Modráčková Jana | C137: ČWA | D137: ano
A138: 711 | B138: Toth ml. | C138: ČWA
A139: 744 | B139: Říčanová Nicol | C139: YC SK Štětí | D139: ano
A140: 771 | B140: Štantejský Jan | C140: ČWA | D140: ano
A141: 777 | B141: Zíma Jakub | C141: ČWA | D141: ano
A142: 781 | B142: Skřepek Šimon | C142: Rapid Brno | D142: ano
A143: 784 | B143: Nevološ Adam | C143: YC SK Štětí | D143: ano
A144: 786 | B144: Beerová Eliška | C144: YC SK Štětí | D144: ano
A145: 787 | B145: Neveloš Tibor | C145: YC SK Štětí | D145: ano
A146: 788 | B146: Muller Ondřej | C146: YC SK Štětí | D146: ano
A147: 814 | B147: Švec Ladislav | C147: Č. Budějovice | D147: ano
A148: 888 | B148: Hulinský Martin | C148: ČWA | D148: ano
A149: 911 | B149: Chalupníková Kristýna
A150: 1006 | B150: Řehák Pavel | C150: ČWA
A151: 1111 | B151: Kir | C151: identiti nechr | D151: ano
A152: 1116 | B152: Netík Pavel jun | C152: YC Velké Dářko | D152: ano
A153: 1117 | B153: Mika Radek | D153: ano
A154: 1534 | B154: Šmídová Pavla | C154: ČWA | D154: ano
A155: 2403 | B155: Raška Ondřej | C155: ČWA | D155: ano
A156: 2222 | B156: Holý Marek | D156: ano
B157: Ledecká Ester | C157: ČWA
B158: Martinova Nicola | C158: ČWA | D158: ano
B159: Mikulec Martin | C159: TJ Rapid | D159: ano
B160: Kaš Petr | C160: TJ Rapid | D160: ano
B161: Sehnalová Teraza | D161: ano
B162: Marečková lenka | D162: ano
B163: Rašková Kateřina | D163: ano
